Workbook

Sheet Calculator
A1: Housing Affordability Calculator | B1: Inputs/Outputs
A2: Year | B2: 2023
A3: County | B3: Fresno
A4: Tenure | B4: Renter | K4: Renter
A5: Bedrooms | B5: 2 | K5: Owner
A6: =IF(B4="Owner","Sales Price",IF(B4="Renter","Monthly Rent","")) -> Monthly Rent | B6: 1200 | K6: 0
A7: Monthly Cost (Before Utilities) | B7: =IF(B4="Renter",$B$6,IF(B4="Owner",'Homeowner Cost'!$B$21,"")) -> 1200 | K7: 1
A8: Lowest Affordability Level | B8: =IFERROR(IF(B7<E40,"Extremely Low Income",IF(B7>E40,IF(B7<F40,"Very Low Income",IF(B7<G40,"Lower Income",IF(B7<H40,"Moderate Income","Above Moderate Income"))))),"") -> Lower Income | K8: 2
K9: 3
A10: A. Check to make sure you are using the calculator for the year of the Annual Progress | K10: 4
A11: Report you are completing. The year in row 2 should match the year of the Annual | K11: 5
A12: Progress Report you are completing. If it does not, close the AMI calculator workbook | K12: 6
A13: and download the AMI calculator workbook for the most recent year. | K13: 7
K14: 2023
A15: B. In row 3, select from the drop down list the County in which the jurisdiction for which | K15: 2022
A16: you are completing the annual report is located. | K16: 2021
K17: 2020
A18: C. In row 4, select the tenure of the unit for which you are calculating the affordability | K18: 2019
A19: level. If “Owner” is selected in row 4, row 6 will update to say “Sales Price”. If | K19: =K18-1 -> 2018
A20: “Renter” is selected in row 4, row 6 will update to say “Monthly Rent” | K20: =K19-1 -> 2017
K21: =K20-1 -> 2016
A22: D. In row 5, select the number of bedrooms in the unit for which affordability level is being | K22: =K21-1 -> 2015
A23: calculated. | K23: =K22-1 -> 2014
K24: =K23-1 -> 2013
A25: E. If “Sales Price” appears in row 6, enter the sales price of the unit for which | K25: 2012
A26: affordability level is being calculated. If “Monthly Rent” appears in row 6, enter on | K26: 2011
A27: the right the monthly rent for the unit for which affordability level is being calculated. | K27: 2010
K28: 2009
A29: F. Row 7 will auto-populate with the monthly housing cost before utilities. For renter-
A30: occupied units, the number in row 7 will match the monthly rent provided in row 6. For
A31: owner-occupied units, the number in row 7 will be calculated based on the sales price
A32: provided in row 6 and estimated monthly housing costs associated with owning a home
A33: with that sales price. For more detail on monthly housing costs for owner-occupied units,
A34: please see the “Assumptions” tab of this workbook.
A36: G. Once rows 2-6 are completed, row 8 will auto-populate with a determination of the
A37: lowest affordability level a unit of the tenure, size, and monthly cost in rows 2-7
A38: could serve based on Health & Safety Code Sections 50052.5 and 50053.
E39: ELI | F39: VLI | G39: LI | H39: MI
B40: Based on BR and Tenure | E40: =VLOOKUP(Calculator!$B$4&Calculator!$B$5,'Rent-Owner Afford Cost'!$C$92:$G$107,2,FALSE) -> 427.36 | F40: =VLOOKUP(Calculator!$B$4&Calculator!$B$5,'Rent-Owner Afford Cost'!$C$92:$G$107,3,FALSE) -> 804.46 | G40: =VLOOKUP(Calculator!$B$4&Calculator!$B$5,'Rent-Owner Afford Cost'!$C$92:$G$107,4,FALSE) -> 1345.585 | H40: =VLOOKUP(Calculator!$B$4&Calculator!$B$5,'Rent-Owner Afford Cost'!$C$92:$G$107,5,FALSE) -> 2124.085

Sheet Assumptions
A1: Housing Affordability Calculator
A2: Assumptions
A3: The Housing Affordability Calculator makes its affordability determinations based on the income levels provided in the Official State Income Limits published annually by HCD. The Official State Income Limits are available on HCDs website at http://www.hcd.ca.gov/grants-funding/income-limits/state-and-federal-income-limits.shtml. The Calculator uses the definition of “affordable” as defined in Health and Safety Code Sections 50052.5 and 50053. Where these sections provide more than one option for the rent or housing cost used to calculate affordability, the calculator bases its determination on the higher option.
A4: For all units, the calculator assumes the following: A. Household size will exceed bedroom count by one (e.g. the household size of a two bedroom unit will be three persons). B. Monthly housing costs will include a utility allowance equal to the Average California Monthly Residential Utility Bill according to the U.S. Energy Information Administration[i] (EIA) ($116.94 per month in 2020).
A5: For owner-occupied units, the calculator assumes the following based on the most recent data available at the time that the calculator is updated: A. A 30-year Federal Housing Administration (FHA) mortgage with a down-payment of 3.5% of the sales price. B. The highest national average mortgage interest rate from the fiscal year prior[ii] C. A private mortgage insurance premium calculated pursuant to HUD’s FHA methodology D. A property tax rate of 1.1% E. For homeowners’ insurance, the Annual Average Written Premium according to the Homeowners Multi-Peril Data[iii] from the California Department of Insurance. F. Average annual home maintenance equal to 1% of sales price G. Statewide Average Monthly Water Bill per most recent California Water Boards Drinking Water Needs Assessment [iv] H. Monthly sewer costs pursuant to the average California wastewater costs in the State Water Resources Control Board survey [v] I. Monthly trash pickup and residential garbage collection costs in the middle of the range provided by HomeAdvisor[vi].
A6: References
A7: [i] https://www.eia.gov/electricity/sales_revenue_price/pdf/table5_a.pdf
A8: [ii] https://fred.stlouisfed.org/series/MORTGAGE30US
A9: [iii] https://www.insurance.ca.gov/0400-news/0200-studies-reports/0250-homeowners-study/upload/A-Part-I-Data-Summary.xlsx
A10: [iv]https://www.waterboards.ca.gov/drinking_water/certlic/drinkingwater/documents/needs/2021_needs_assessment.pdf
A11: [v]https://www.waterboards.ca.gov/water_issues/programs/grants_loans/srf/docs/cy2018ww_user_charge_survey.pdf
A12: [vi] https://www.homeadvisor.com/cost/cleaning-services/remove-waste/

Sheet Rent-Owner Afford Cost (hidden)
A1: HCD GUIDE: Applicable for Projects Required to Comply with CA Health & Safety Code Sections 50052.5 and 50053.
A2: Example of affordable housing cost estimator:
B4: COUNTY (fill-in): | C4: =Calculator!B3 -> Fresno | K4: =Calculator!B2 -> 2023 | L4: (fill-in: Calendar Year)
A5: Affordable Housing Cost: | C5: AREA MEDIAN INCOME (AMI): | K5: =VLOOKUP(C4,IncomeLimits!$A$2:$B$59,2,FALSE) -> 83800 | L5: (Auto calculated by County name)
A6: Reasonable Utility Allowance (Most Recent Average California Monthly Residential Utility Bill (EIA)) https://www.eia.gov/electricity/sales_revenue_price/pdf/table5_a.pdf: | F6: 138.29 | H6: To find COUNTY & INCOME to "fill-in":
D7: RENTER | F7: OWNER | H7: for AMI, use "Official State Income Limits" at below link
A8: Health & Safety Code (H&SC): | D8: §§ 50053 | F8: §§ 50052.5 | H8: http://www.hcd.ca.gov/grants-funding/income-limits/state-and-federal-income-limits/docs/inc2k18.pdf
A9: Extremely Low | D9: 0.3 | F9: 0.3 | H9: [ | L9: Formula | P9: Months ]
A10: Very Low | D10: 0.5 | F10: 0.5 | H10: (These columns show how the maximum monthly
A11: Low | D11: 0.6 | F11: 0.7 | H11: rent and maximum housing cost were calculated.)
A12: Moderate | D12: 1.1 | F12: 1.1 | M12: Above
B13: H&SC 50052.5(h) | D13: Maximum | M13: County's
B14: Unit | C14: HH | D14: Monthly | E14: Rent After Utility Allowance | F14: Maximum Month | I14: Max | M14: Area | O14: * Family
B15: Size | C15: Size | D15: Renter Housing Cost | F15: House Cost | I15: Cost | K15: Median % | M15: Median | O15: Size
A16: Income Group | B16: Bedrooms | C16: Persons | D16: (Renters) | F16: (Owners) | H16: [ | I16: % | K16: Upper Limit | M16: Income | O16: Adj. | P16: Months ] | S16: Alternate Rent Option
A18: Extremely Low Income HH | B18: 0 (Studio) | C18: 1 | D18: =(($I18*$K18*$M18*$O18)/12) -> 439.95 | E18: =D18-$F$6 -> 301.66 | F18: same | G18: =D18-$F$6 -> 301.66 | H18: [ ( | I18: 0.3 | J18: x | K18: 0.3 | L18: x | M18: =K$5 -> 83800 | N18: x | O18: 0.7 | P18: ) | Q18: / 12 ]
B19: 1 bedroom | C19: 2 | D19: 502.8 | E19: =D19-$F$6 -> 364.51 | F19: same | G19: =D19-$F$6 -> 364.51 | H19: [ ( | I19: 0.3 | J19: x | K19: 0.3 | L19: x | M19: =K$5 -> 83800 | N19: x | O19: 0.8 | P19: ) | Q19: / 12 ]
B20: 2 bedrooms | C20: 3 | D20: 565.65 | E20: =D20-$F$6 -> 427.36 | F20: same | G20: 427.36 | H20: [ ( | I20: 0.3 | J20: x | K20: 0.3 | L20: x | M20: =K$5 -> 83800 | N20: x | O20: 0.9 | P20: ) | Q20: / 12 ]
B21: 3 bedrooms | C21: 4 | D21: 628.5 | E21: =D21-$F$6 -> 490.21 | F21: same | G21: 490.21 | H21: [ ( | I21: 0.3 | J21: x | K21: 0.3 | L21: x | M21: =K$5 -> 83800 | N21: x | O21: 1 | P21: ) | Q21: / 12 ]
B22: 4 bedrooms | C22: 5 | D22: 678.78 | E22: =D22-$F$6 -> 540.49 | F22: same | G22: 540.49 | H22: [ ( | I22: 0.3 | J22: x | K22: 0.3 | L22: x | M22: =K$5 -> 83800 | N22: x | O22: 1.08 | P22: ) | Q22: / 12 ]
B23: 5 bedrooms | C23: 6 | D23: 729.06 | E23: =D23-$F$6 -> 590.77 | F23: same | G23: 590.77 | H23: [ ( | I23: 0.3 | J23: x | K23: 0.3 | L23: x | M23: =K$5 -> 83800 | N23: x | O23: 1.16 | P23: ) | Q23: / 12 ]
B24: 6 bedrooms | C24: 7 | D24: =(($I24*$K24*$M24*$O24)/12) -> 779.34 | E24: 641.05 | F24: same | G24: 641.05 | H24: [ ( | I24: 0.3 | J24: x | K24: 0.3 | L24: x | M24: 83800 | N24: x | O24: 1.24 | P24: ) | Q24: / 12 ]
B25: 7 bedrooms | C25: 8 | D25: 829.62 | E25: 691.33 | F25: same | G25: 691.33 | H25: [ ( | I25: 0.3 | J25: x | K25: 0.3 | L25: x | M25: 83800 | N25: x | O25: 1.32 | P25: ) | Q25: / 12 ]
A27: Very Low Income HH | B27: 0 (Studio) | C27: 1 | D27: =(($I27*$K27*$M27*$O27)/12) -> 733.25 | E27: =D27-$F$6 -> 594.96 | F27: same | G27: 594.96 | H27: [ ( | I27: 0.3 | J27: x | K27: 0.5 | L27: x | M27: =K$5 -> 83800 | N27: x | O27: 0.7 | P27: ) | Q27: / 12 ]
B28: 1 bedroom | C28: 2 | D28: =(($I28*$K28*$M28*$O28)/12) -> 838 | E28: =D28-$F$6 -> 699.71 | F28: same | G28: 699.71 | H28: [ ( | I28: 0.3 | J28: x | K28: 0.5 | L28: x | M28: =K$5 -> 83800 | N28: x | O28: 0.8 | P28: ) | Q28: / 12 ]
B29: 2 bedrooms | C29: 3 | D29: =(($I29*$K29*$M29*$O29)/12) -> 942.75 | E29: =D29-$F$6 -> 804.46 | F29: same | G29: 804.46 | H29: [ ( | I29: 0.3 | J29: x | K29: 0.5 | L29: x | M29: =K$5 -> 83800 | N29: x | O29: 0.9 | P29: ) | Q29: / 12 ]
B30: 3 bedrooms | C30: 4 | D30: =(($I30*$K30*$M30*$O30)/12) -> 1047.5 | E30: =D30-$F$6 -> 909.21 | F30: same | G30: 909.21 | H30: [ ( | I30: 0.3 | J30: x | K30: 0.5 | L30: x | M30: =K$5 -> 83800 | N30: x | O30: 1 | P30: ) | Q30: / 12 ]
B31: 4 bedrooms | C31: 5 | D31: =(($I31*$K31*$M31*$O31)/12) -> 1131.3 | E31: =D31-$F$6 -> 993.01 | F31: same | G31: 993.01 | H31: [ ( | I31: 0.3 | J31: x | K31: 0.5 | L31: x | M31: =K$5 -> 83800 | N31: x | O31: 1.08 | P31: ) | Q31: / 12 ]
B32: 5 bedrooms | C32: 6 | D32: =(($I32*$K32*$M32*$O32)/12) -> 1215.1 | E32: =D32-$F$6 -> 1076.81 | F32: same | G32: 1076.81 | H32: [ ( | I32: 0.3 | J32: x | K32: 0.5 | L32: x | M32: =K$5 -> 83800 | N32: x | O32: 1.16 | Q32: / 12 ]
B33: 6 bedrooms | C33: 7 | D33: 1298.9 | E33: 1160.61 | F33: same | G33: 1160.61 | H33: [ ( | I33: 0.3 | J33: x | K33: 0.5 | L33: x | M33: 83800 | N33: x | O33: 1.24 | Q33: / 12 ]
B34: 7 bedrooms | C34: 8 | D34: 1382.7 | E34: 1244.41 | F34: same | G34: 1244.41 | H34: [ ( | I34: 0.3 | J34: x | K34: 0.5 | L34: x | M34: 83800 | N34: x | O34: 1.32 | Q34: / 12 ]
A36: Low Income HH | B36: 0 (Studio) | C36: 1 | D36: =(($I36*$K36*$M36*$O36)/12) -> 879.9 | E36: =D36-$F$6 -> 741.61 | F36: 60% median applies to renters | H36: [ ( | I36: 0.3 | J36: x | K36: 0.6 | L36: x | M36: =K$5 -> 83800 | N36: x | O36: 0.7 | P36: ) | Q36: / 12 ] | S36: =((VLOOKUP($C$4,IncomeLimits!$A$2:$C$59,3,FALSE)*O36*I36)/12)-$F$6 -> 1015.835 | T36: H&SC 50053(b)(4) provides option for highest maximum rent to not exceed
B37: 1 bedroom | C37: 2 | D37: =(($I37*$K37*$M37*$O37)/12) -> 1005.6 | E37: =D37-$F$6 -> 867.31 | H37: [ ( | I37: 0.3 | J37: x | K37: 0.6 | L37: x | M37: =K$5 -> 83800 | N37: x | O37: 0.8 | P37: ) | Q37: / 12 ] | S37: =((VLOOKUP($C$4,IncomeLimits!$A$2:$C$59,3,FALSE)*O37*I37)/12)-$F$6 -> 1180.71 | T37: 30% of household (HH) gross income when lower income HH gross income
B38: 2 bedrooms | C38: 3 | D38: =(($I38*$K38*$M38*$O38)/12) -> 1131.3 | E38: =D38-$F$6 -> 993.01 | H38: [ ( | I38: 0.3 | J38: x | K38: 0.6 | L38: x | M38: =K$5 -> 83800 | N38: x | O38: 0.9 | P38: ) | Q38: / 12 ] | S38: =((VLOOKUP($C$4,IncomeLimits!$A$2:$C$59,3,FALSE)*O38*I38)/12)-$F$6 -> 1345.585 | T38: exceeds 60% of AMI adjusted for HH size or when moderate income HH
B39: 3 bedrooms | C39: 4 | D39: =(($I39*$K39*$M39*$O39)/12) -> 1257 | E39: =D39-$F$6 -> 1118.71 | H39: [ ( | I39: 0.3 | J39: x | K39: 0.6 | L39: x | M39: =K$5 -> 83800 | N39: x | O39: 1 | P39: ) | Q39: / 12 ] | S39: =((VLOOKUP($C$4,IncomeLimits!$A$2:$C$59,3,FALSE)*O39*I39)/12)-$F$6 -> 1510.46 | T39: gross income exceeds 110% of AMI adjusted for HH size
B40: 4 bedrooms | C40: 5 | D40: =(($I40*$K40*$M40*$O40)/12) -> 1357.56 | E40: =D40-$F$6 -> 1219.27 | H40: [ ( | I40: 0.3 | J40: x | K40: 0.6 | L40: x | M40: =K$5 -> 83800 | N40: x | O40: 1.08 | P40: ) | Q40: / 12 ] | S40: =((VLOOKUP($C$4,IncomeLimits!$A$2:$C$59,3,FALSE)*O40*I40)/12)-$F$6 -> 1642.36
B41: 5 bedrooms | C41: 6 | D41: =(($I41*$K41*$M41*$O41)/12) -> 1458.12 | E41: =D41-$F$6 -> 1319.83 | H41: [ ( | I41: 0.3 | J41: x | K41: 0.6 | L41: x | M41: =K$5 -> 83800 | N41: x | O41: 1.16 | Q41: / 12 ] | S41: =((VLOOKUP($C$4,IncomeLimits!$A$2:$C$59,3,FALSE)*O41*I41)/12)-$F$6 -> 1774.26
B42: 6 bedrooms | C42: 7 | D42: 1558.68 | E42: 1420.39 | H42: [ ( | I42: 0.3 | J42: x | K42: 0.6 | L42: x | M42: 83800 | N42: x | O42: 1.24 | Q42: / 12 ] | S42: =((VLOOKUP($C$4,IncomeLimits!$A$2:$C$59,3,FALSE)*O42*I42)/12)-$F$6 -> 1906.16
B43: 7 bedrooms | C43: 8 | D43: 1659.24 | E43: 1520.95 | H43: [ ( | I43: 0.3 | J43: x | K43: 0.6 | L43: x | M43: 83800 | N43: x | O43: 1.32 | Q43: / 12 ] | S43: =((VLOOKUP($C$4,IncomeLimits!$A$2:$C$59,3,FALSE)*O43*I43)/12)-$F$6 -> 2038.06
B45: 0 (Studio) | C45: 1 | D45: 70% median applies to owners | F45: =(($I45*$K45*$M45*$O45)/12) -> 1026.55 | G45: =F45-$F$6 -> 888.26 | H45: [ ( | I45: 0.3 | J45: x | K45: 0.7 | L45: x | M45: =K$5 -> 83800 | N45: x | O45: 0.7 | P45: ) | Q45: / 12 ]
B46: 1 bedroom | C46: 2 | F46: =(($I46*$K46*$M46*$O46)/12) -> 1173.2 | G46: =F46-$F$6 -> 1034.91 | H46: [ ( | I46: 0.3 | J46: x | K46: 0.7 | L46: x | M46: =K$5 -> 83800 | N46: x | O46: 0.8 | P46: ) | Q46: / 12 ]
B47: 2 bedrooms | C47: 3 | F47: =(($I47*$K47*$M47*$O47)/12) -> 1319.85 | G47: =F47-$F$6 -> 1181.56 | H47: [ ( | I47: 0.3 | J47: x | K47: 0.7 | L47: x | M47: =K$5 -> 83800 | N47: x | O47: 0.9 | P47: ) | Q47: / 12 ]
B48: 3 bedrooms | C48: 4 | F48: =(($I48*$K48*$M48*$O48)/12) -> 1466.5 | G48: =F48-$F$6 -> 1328.21 | H48: [ ( | I48: 0.3 | J48: x | K48: 0.7 | L48: x | M48: =K$5 -> 83800 | N48: x | O48: 1 | P48: ) | Q48: / 12 ]
B49: 4 bedrooms | C49: 5 | F49: =(($I49*$K49*$M49*$O49)/12) -> 1583.82 | G49: =F49-$F$6 -> 1445.53 | H49: [ ( | I49: 0.3 | J49: x | K49: 0.7 | L49: x | M49: =K$5 -> 83800 | N49: x | O49: 1.08 | P49: ) | Q49: / 12 ]
B50: 5 bedrooms | C50: 6 | F50: =(($I50*$K50*$M50*$O50)/12) -> 1701.14 | G50: =F50-$F$6 -> 1562.85 | H50: [ ( | I50: 0.3 | J50: x | K50: 0.7 | L50: x | M50: =K$5 -> 83800 | N50: x | O50: 1.16 | Q50: / 12 ]
B51: 6 bedrooms | C51: 7 | F51: 1818.46 | G51: 1680.17 | H51: [ ( | I51: 0.3 | J51: x | K51: 0.7 | L51: x | M51: 83800 | N51: x | O51: 1.24 | Q51: / 12 ]
B52: 7 bedrooms | C52: 8 | F52: 1935.78 | G52: 1797.49 | H52: [ ( | I52: 0.3 | J52: x | K52: 0.7 | L52: x | M52: 83800 | N52: x | O52: 1.32 | Q52: / 12 ]
A54: Moderate Income HH | B54: 0 (Studio) | C54: 1 | D54: =(($I54*$K54*$M54*$O54)/12) -> 1613.15 | E54: =D54-$F$6 -> 1474.86 | F54: 30% cost applies to renters | H54: [ ( | I54: 0.3 | J54: x | K54: 1.1 | L54: x | M54: =K$5 -> 83800 | N54: x | O54: 0.7 | P54: ) | Q54: / 12 ] | S54: =((VLOOKUP($C$4,IncomeLimits!$A$2:$D$59,4,FALSE)*O54*I54)/12)-$F$6 -> 1621.335 | T54: H&SC 50053(b)(4) provides option for highest maximum rent to not exceed
B55: 1 bedroom | C55: 2 | D55: =(($I55*$K55*$M55*$O55)/12) -> 1843.6 | E55: =D55-$F$6 -> 1705.31 | H55: [ ( | I55: 0.3 | J55: x | K55: 1.1 | L55: x | M55: =K$5 -> 83800 | N55: x | O55: 0.8 | P55: ) | Q55: / 12 ] | S55: =((VLOOKUP($C$4,IncomeLimits!$A$2:$D$59,4,FALSE)*O55*I55)/12)-$F$6 -> 1872.71 | T55: 30% of household (HH) gross income when moderate income HH gross
B56: 2 bedrooms | C56: 3 | D56: =(($I56*$K56*$M56*$O56)/12) -> 2074.05 | E56: =D56-$F$6 -> 1935.76 | H56: [ ( | I56: 0.3 | J56: x | K56: 1.1 | L56: x | M56: =K$5 -> 83800 | N56: x | O56: 0.9 | P56: ) | Q56: / 12 ] | S56: =((VLOOKUP($C$4,IncomeLimits!$A$2:$D$59,4,FALSE)*O56*I56)/12)-$F$6 -> 2124.085 | T56: income exceeds 110% of AMI adjusted for HH size
B57: 3 bedrooms | C57: 4 | D57: =(($I57*$K57*$M57*$O57)/12) -> 2304.5 | E57: =D57-$F$6 -> 2166.21 | H57: [ ( | I57: 0.3 | J57: x | K57: 1.1 | L57: x | M57: =K$5 -> 83800 | N57: x | O57: 1 | P57: ) | Q57: / 12 ] | S57: =((VLOOKUP($C$4,IncomeLimits!$A$2:$D$59,4,FALSE)*O57*I57)/12)-$F$6 -> 2375.46
B58: 4 bedrooms | C58: 5 | D58: =(($I58*$K58*$M58*$O58)/12) -> 2488.86 | E58: =D58-$F$6 -> 2350.57 | H58: [ ( | I58: 0.3 | J58: x | K58: 1.1 | L58: x | M58: =K$5 -> 83800 | N58: x | O58: 1.08 | P58: ) | Q58: / 12 ] | S58: =((VLOOKUP($C$4,IncomeLimits!$A$2:$D$59,4,FALSE)*O58*I58)/12)-$F$6 -> 2576.56
B59: 5 bedrooms | C59: 6 | D59: =(($I59*$K59*$M59*$O59)/12) -> 2673.22 | E59: =D59-$F$6 -> 2534.93 | H59: [ ( | I59: 0.3 | J59: x | K59: 1.1 | L59: x | M59: =K$5 -> 83800 | N59: x | O59: 1.16 | P59: ) | Q59: / 12 ] | S59: =((VLOOKUP($C$4,IncomeLimits!$A$2:$D$59,4,FALSE)*O59*I59)/12)-$F$6 -> 2777.66
B60: 6 bedrooms | C60: 7 | D60: 2857.58 | E60: 2719.29 | H60: [ ( | I60: 0.3 | J60: x | K60: 1.1 | L60: x | M60: 83800 | N60: x | O60: 1.24 | P60: ) | Q60: / 12 ] | S60: =((VLOOKUP($C$4,IncomeLimits!$A$2:$D$59,4,FALSE)*O60*I60)/12)-$F$6 -> 2978.76
B61: 7 bedrooms | C61: 8 | D61: 3041.94 | E61: 2903.65 | H61: [ ( | I61: 0.3 | J61: x | K61: 1.1 | L61: x | M61: 83800 | N61: x | O61: 1.32 | P61: ) | Q61: / 12 ] | S61: =((VLOOKUP($C$4,IncomeLimits!$A$2:$D$59,4,FALSE)*O61*I61)/12)-$F$6 -> 3179.86
B63: 0 (Studio) | C63: 1 | D63: 35% cost applies to owners | F63: =(($I63*$K63*$M63*$O63)/12) -> 1882.008333 | G63: =F63-$F$6 -> 1743.718333 | H63: [ ( | I63: 0.35 | J63: x | K63: 1.1 | L63: x | M63: =K$5 -> 83800 | N63: x | O63: 0.7 | P63: ) | Q63: / 12 ]
B64: 1 bedroom | C64: 2 | F64: =(($I64*$K64*$M64*$O64)/12) -> 2150.866667 | G64: =F64-$F$6 -> 2012.576667 | H64: [ ( | I64: 0.35 | J64: x | K64: 1.1 | L64: x | M64: =K$5 -> 83800 | N64: x | O64: 0.8 | P64: ) | Q64: / 12 ]
B65: 2 bedrooms | C65: 3 | F65: =(($I65*$K65*$M65*$O65)/12) -> 2419.725 | G65: =F65-$F$6 -> 2281.435 | H65: [ ( | I65: 0.35 | J65: x | K65: 1.1 | L65: x | M65: =K$5 -> 83800 | N65: x | O65: 0.9 | P65: ) | Q65: / 12 ]
B66: 3 bedrooms | C66: 4 | F66: =(($I66*$K66*$M66*$O66)/12) -> 2688.583333 | G66: =F66-$F$6 -> 2550.293333 | H66: [ ( | I66: 0.35 | J66: x | K66: 1.1 | L66: x | M66: =K$5 -> 83800 | N66: x | O66: 1 | P66: ) | Q66: / 12 ]
B67: 4 bedrooms | C67: 5 | F67: =(($I67*$K67*$M67*$O67)/12) -> 2903.67 | G67: =F67-$F$6 -> 2765.38 | H67: [ ( | I67: 0.35 | J67: x | K67: 1.1 | L67: x | M67: =K$5 -> 83800 | N67: x | O67: 1.08 | P67: ) | Q67: / 12 ]
B68: 5 bedrooms | C68: 6 | F68: =(($I68*$K68*$M68*$O68)/12) -> 3118.756667 | G68: =F68-$F$6 -> 2980.466667 | H68: [ ( | I68: 0.35 | J68: x | K68: 1.1 | L68: x | M68: =K$5 -> 83800 | N68: x | O68: 1.16 | P68: ) | Q68: / 12 ]
B69: 6 bedrooms | C69: 7 | F69: 3333.843333 | G69: 3195.553333 | H69: [ ( | I69: 0.35 | J69: x | K69: 1.1 | L69: x | M69: 83800 | N69: x | O69: 1.24 | P69: ) | Q69: / 12 ]
B70: 7 bedrooms | C70: 8 | F70: 3548.93 | G70: 3410.64 | H70: [ ( | I70: 0.35 | J70: x | K70: 1.1 | L70: x | M70: 83800 | N70: x | O70: 1.32 | P70: ) | Q70: / 12 ]
A72: * Family Size (1-8) Adjustment: Adjustments are made so larger families have higher income limits. The 4-person income limit serves as the base in calculating income limits for household sizes other than 4 persons. For family sizes ranging from 1 to 8 persons, the multipliers are as follows:
A73: Number of Persons (below):
A74: 1 | B74: 2 | C74: 3 | D74: 4 | H74: 5 | K74: 6 | L74: 7 | N74: 8
A75: 0.7 | B75: 0.8 | C75: 0.9 | D75: 1.0 (base) | H75: 1.08 | K75: 1.16 | L75: 1.24 | N75: 1.32
A76: Decimal Multipliers (above):
A78: For households larger than eight persons (all income categories), determine income limit as follows:
A79: Per person (PP) adjustment above 8: (1) multiply the four-person income limit by eight percent (8%), (2) multiply result by
A80: number of persons in excess of eight, (3) add the amount to the income limit for eight persons, and
A81: (4) round the result to the nearest $100.
H82: added to 8 persons
A83: E X A M P L E | C83: 4 persons | D83: x 8% PP Adj | K83: = 9 persons | L83: 8 persons+8%PPAdj(x2) | P83: = 10 persons
A84: Extremely Low | C84: 19500 | D84: =+C84*0.08 -> 1560 | I84: =+C84*1.32+10 -> 25750 | K84: =+I84+D84-10 -> 27300 | M84: 25750 | N84: =+D84*2 -> 3120 | Q84: =+D84*2+I84+30 -> 28900
A85: Very Low Income | C85: 35650 | D85: =+C85*0.08 -> 2852 | I85: =+C85*1.32+42 -> 47100 | K85: =+I85+D85+48 -> 50000 | M85: 47100 | N85: =+D85*2 -> 5704 | Q85: =+D85*2+I85-4 -> 52800
A86: Lower Income | C86: 55750 | D86: =+C86*0.08 -> 4460 | I86: =+C86*1.32+10 -> 73600 | K86: =+I86+D86+40 -> 78100 | M86: 73600 | N86: =+D86*2 -> 8920 | Q86: =+D86*2+I86-20 -> 82500
A87: Moderate Income | C87: 80500 | D87: =+C87*0.08 -> 6440 | I87: =+C87*1.32-10 -> 106250 | K87: =+I87+D87+10 -> 112700 | M87: 106250 | N87: =+D87*2 -> 12880 | Q87: =+D87*2+I87-30 -> 119100
A89: Source: California Department of Housing and Community Development/ Division of Housing Policy 4/26/2018
B91: BR | D91: ELI | E91: VLI | F91: LI | G91: MI
A92: Renter | B92: 0 | C92: =A92&B92 -> Renter0 | D92: =E18 -> 301.66 | E92: =E27 -> 594.96 | F92: =IF(E36<S36,S36,E36) -> 1015.835 | G92: =IF(E54<S54,S54,E54) -> 1621.335
A93: Renter | B93: 1 | C93: =A93&B93 -> Renter1 | D93: =E19 -> 364.51 | E93: =E28 -> 699.71 | F93: =IF(E37<S37,S37,E37) -> 1180.71 | G93: =IF(E55<S55,S55,E55) -> 1872.71
A94: Renter | B94: 2 | C94: Renter2 | D94: =E20 -> 427.36 | E94: =E29 -> 804.46 | F94: =IF(E38<S38,S38,E38) -> 1345.585 | G94: =IF(E56<S56,S56,E56) -> 2124.085
A95: Renter | B95: 3 | C95: Renter3 | D95: =E21 -> 490.21 | E95: =E30 -> 909.21 | F95: =IF(E39<S39,S39,E39) -> 1510.46 | G95: =IF(E57<S57,S57,E57) -> 2375.46
A96: Renter | B96: 4 | C96: Renter4 | D96: =E22 -> 540.49 | E96: =E31 -> 993.01 | F96: =IF(E40<S40,S40,E40) -> 1642.36 | G96: =IF(E58<S58,S58,E58) -> 2576.56
A97: Renter | B97: 5 | C97: Renter5 | D97: =E23 -> 590.77 | E97: =E32 -> 1076.81 | F97: =IF(E41<S41,S41,E41) -> 1774.26 | G97: =IF(E59<S59,S59,E59) -> 2777.66
A98: Renter | B98: 6 | C98: Renter6 | D98: 641.05 | E98: 1160.61 | F98: 1906.16 | G98: 2978.76
A99: Renter | B99: 7 | C99: Renter7 | D99: 691.33 | E99: 1244.41 | F99: 2038.06 | G99: 3179.86
A100: Owner | B100: 0 | C100: Owner0 | D100: =G18 -> 301.66 | E100: =G27 -> 594.96 | F100: =G45 -> 888.26 | G100: =G63 -> 1743.718333
A101: Owner | B101: 1 | C101: Owner1 | D101: =G19 -> 364.51 | E101: =G28 -> 699.71 | F101: =G46 -> 1034.91 | G101: =G64 -> 2012.576667
A102: Owner | B102: 2 | C102: Owner2 | D102: =G20 -> 427.36 | E102: =G29 -> 804.46 | F102: =G47 -> 1181.56 | G102: =G65 -> 2281.435
A103: Owner | B103: 3 | C103: Owner3 | D103: =G21 -> 490.21 | E103: =G30 -> 909.21 | F103: =G48 -> 1328.21 | G103: =G66 -> 2550.293333
A104: Owner | B104: 4 | C104: Owner4 | D104: =G22 -> 540.49 | E104: =G31 -> 993.01 | F104: =G49 -> 1445.53 | G104: =G67 -> 2765.38
A105: Owner | B105: 5 | C105: Owner5 | D105: =G23 -> 590.77 | E105: =G32 -> 1076.81 | F105: =G50 -> 1562.85 | G105: =G68 -> 2980.466667
A106: Owner | B106: 6 | C106: Owner6 | D106: 641.05 | E106: 1160.61 | F106: 1680.17 | G106: 3195.553333
A107: Owner | B107: 7 | C107: Owner7 | D107: 691.33 | E107: 1244.41 | F107: 1797.49 | G107: =G70 -> 3410.64

Sheet Homeowner Cost (hidden)
B1: 1
B2: 0.035
A3: SP | B3: =Calculator!B6 -> 1200
B4: =B3 -> 1200
A5: DP | B5: =B2*B4 -> 42
A6: LA | B6: =B3-B5 -> 1158
A7: IR | B7: ='Interest Rates'!C54/100 -> 0.0708 | C7: Updates based on "Interest Rates" tab
A8: YR | B8: 30
A9: PPY | B9: 12
A10: TP | B10: =B9*B8 -> 360
A11: PPP | B11: =MROUND(-PMT(B7/B9,B10,B6,0),0.01) -> 7.77
A12: PMI | B12: =PMI!B17 -> 0.52 | C12: Updates based on "PMI" tab
A13: PT | B13: =B3*0.011 -> 13.2
A14: INS | B14: 1458.47 | C14: https://www.insurance.ca.gov/0400-news/0200-studies-reports/0250-homeowners-study/upload/A-Part-I-Data-Summary.xlsx
A15: MNT | B15: =B3*0.01 -> 12
A16: WSG | B16: =(75.95)+47.87+((25+100)/2) -> 186.32 | C16: Water: https://www.waterboards.ca.gov/drinking_water/certlic/drinkingwater/documents/needs/2021_needs_assessment.pdf | D16: Sewer: https://public.tableau.com/app/profile/rafael.maestu/viz/WastewaterSurvey12-18PUBLICAGENCIES/Story1 | E16: Garbage: https://www.homeadvisor.com/cost/cleaning-services/remove-waste/
A17: SUM | B17: =B11*B10 -> 2797.2
A18: IC | B18: =B17-B6 -> 1639.2
A19: R
A20: E | B20: =((SUM($B$13:$B$16)/12)+$B$11+$B$12)*12 -> 1769.47
A21: Monthly Cost: | B21: =B20/12 -> 147.4558333

Sheet PMI (hidden)
B1: https://www.hud.gov/program_offices/housing/comp/premiums/sfpcalc | C1: a. | D1: b. | E1: c. | F1: d
B2: ='Homeowner Cost'!B6 -> 1158 | C2: =MROUND($B$2*'Homeowner Cost'!B$7*100,0.01) -> 8198.64 | D2: =MROUND((C2/1200),0.01) -> 6.83 | E2: =D2+B2 -> 1164.83 | F2: =$E$2-'Homeowner Cost'!$B$11 -> 1157.06
B3: =F2 -> 1157.06 | C3: =MROUND($B3*'Homeowner Cost'!B$7*100,0.01) -> 8191.98 | D3: =MROUND((C3/1200),0.01) -> 6.83 | E3: =D3+B3 -> 1163.89 | F3: =$E3-'Homeowner Cost'!$B$11 -> 1156.12
B4: =F3 -> 1156.12 | C4: =MROUND($B4*'Homeowner Cost'!B$7*100,0.01) -> 8185.33 | D4: 6.82 | E4: =D4+B4 -> 1162.94 | F4: =$E4-'Homeowner Cost'!$B$11 -> 1155.17
B5: 1155.17 | C5: =MROUND($B5*'Homeowner Cost'!B$7*100,0.01) -> 8178.6 | D5: 6.82 | E5: 1161.99 | F5: =$E5-'Homeowner Cost'!$B$11 -> 1154.22
B6: 1154.22 | C6: =MROUND($B6*'Homeowner Cost'!B$7*100,0.01) -> 8171.88 | D6: 6.81 | E6: 1161.03 | F6: =$E6-'Homeowner Cost'!$B$11 -> 1153.26
B7: 1153.26 | C7: =MROUND($B7*'Homeowner Cost'!B$7*100,0.01) -> 8165.08 | D7: 6.8 | E7: 1160.06 | F7: =$E7-'Homeowner Cost'!$B$11 -> 1152.29
B8: 1152.29 | C8: =MROUND($B8*'Homeowner Cost'!B$7*100,0.01) -> 8158.21 | D8: 6.8 | E8: 1159.09 | F8: =$E8-'Homeowner Cost'!$B$11 -> 1151.32
B9: 1151.32 | C9: =MROUND($B9*'Homeowner Cost'!B$7*100,0.01) -> 8151.35 | D9: 6.79 | E9: 1158.11 | F9: =$E9-'Homeowner Cost'!$B$11 -> 1150.34
B10: 1150.34 | C10: =MROUND($B10*'Homeowner Cost'!B$7*100,0.01) -> 8144.41 | D10: 6.79 | E10: 1157.13 | F10: =$E10-'Homeowner Cost'!$B$11 -> 1149.36
B11: 1149.36 | C11: =MROUND($B11*'Homeowner Cost'!B$7*100,0.01) -> 8137.47 | D11: 6.78 | E11: 1156.14 | F11: =$E11-'Homeowner Cost'!$B$11 -> 1148.37
B12: =F11 -> 1148.37 | C12: =MROUND($B12*'Homeowner Cost'!B$7*100,0.01) -> 8130.46 | D12: 6.78 | E12: =D12+B12 -> 1155.15 | F12: =$E12-'Homeowner Cost'!$B$11 -> 1147.38
B13: =F12 -> 1147.38 | C13: =MROUND($B13*'Homeowner Cost'!B$7*100,0.01) -> 8123.45 | D13: 6.77 | E13: =D13+B13 -> 1154.15 | F13: =$E13-'Homeowner Cost'!$B$11 -> 1146.38
A14: Step 1 | B14: =SUM(B2:B13)/12 -> 1152.740833
A15: Step 2 | B15: =MROUND(IF(B2>F20,(MROUND(B14*H19,0.01)),(MROUND(B14*(H18),0.01))),0.01) -> 6.34 | C15: MIP Rate: https://www.hud.gov/sites/documents/40001HSGH.PDF
A16: Step 3 | B16: =MROUND((B15/(1+H17)),0.01) -> 6.23 | C16: UFMIP Rate: https://www.hud.gov/sites/documents/40001HSGH.PDF | H16: =106605/0.965 -> 110471.5026
A17: Step 4 | B17: =MROUND((B16/12),0.01) -> 0.52 | F17: UFMIP Rate (Basis Points) | G17: 175 | H17: =G17/10000 -> 0.0175
A18: Step 5 | B18: =B17*12 -> 6.24 | F18: =CONCATENATE("Annual MIP Rate (Basis Points) for Loans Less than or equal to $", F20) -> Annual MIP Rate (Basis Points) for Loans Less than or equal to $726200 | G18: 55 | H18: =G18/10000 -> 0.0055
F19: =CONCATENATE("Annual MIP Rate (Basis Points) for Loans Greater Than $",F20) -> Annual MIP Rate (Basis Points) for Loans Greater Than $726200 | G19: 65 | H19: =G19/10000 -> 0.0065
F20: 726200

Sheet Interest Rates (hidden)
A1: DATE | B1: MORTGAGE30US | C1: https://fred.stlouisfed.org/series/MORTGAGE30US
A2: 2022-07-07 | B2: 5.3
A3: 2022-07-14 | B3: 5.51
A4: 2022-07-21 | B4: 5.54
A5: 2022-07-28 | B5: 5.3
A6: 2022-08-04 | B6: 4.99
A7: 2022-08-11 | B7: 5.22
A8: 2022-08-18 | B8: 5.13
A9: 2022-08-25 | B9: 5.55
A10: 2022-09-01 | B10: 5.66
A11: 2022-09-08 | B11: 5.89
A12: 2022-09-15 | B12: 6.02
A13: 2022-09-22 | B13: 6.29
A14: 2022-09-29 | B14: 6.7
A15: 2022-10-06 | B15: 6.66
A16: 2022-10-13 | B16: 6.92
A17: 2022-10-20 | B17: 6.94
A18: 2022-10-27 | B18: 7.08
A19: 2022-11-03 | B19: 6.95
A20: 2022-11-10 | B20: 7.08
A21: 2022-11-17 | B21: 6.61
A22: 2022-11-23 | B22: 6.58
A23: 2022-12-01 | B23: 6.49
A24: 2022-12-08 | B24: 6.33
A25: 2022-12-15 | B25: 6.31
A26: 2022-12-22 | B26: 6.27
A27: 2022-12-29 | B27: 6.42
A28: 2023-01-05 | B28: 6.48
A29: 2023-01-12 | B29: 6.33
A30: 2023-01-19 | B30: 6.15
A31: 2023-01-26 | B31: 6.13
A32: 2023-02-02 | B32: 6.09
A33: 2023-02-09 | B33: 6.12
A34: 2023-02-16 | B34: 6.32
A35: 2023-02-23 | B35: 6.5
A36: 2023-03-02 | B36: 6.65
A37: 2023-03-09 | B37: 6.73
A38: 2023-03-16 | B38: 6.6
A39: 2023-03-23 | B39: 6.42
A40: 2023-03-30 | B40: 6.32
A41: 2023-04-06 | B41: 6.28
A42: 2023-04-13 | B42: 6.27
A43: 2023-04-20 | B43: 6.39
A44: 2023-04-27 | B44: 6.43
A45: 2023-05-04 | B45: 6.39
A46: 2023-05-11 | B46: 6.35
A47: 2023-05-18 | B47: 6.39
A48: 2023-05-25 | B48: 6.57
A49: 2023-06-01 | B49: 6.79
A50: 2023-06-08 | B50: 6.71
A51: 2023-06-15 | B51: 6.69
A52: 2023-06-22 | B52: 6.67
A53: 2023-06-29 | B53: 6.71
C54: =MAX(B2:B53) -> 7.08

Sheet IncomeLimits (hidden)
A1: County | B1: Median Income | C1: Low Income | D1: Moderate Income | E1: ='Rent-Owner Afford Cost'!K4 -> 2023
A2: Alameda | B2: =VLOOKUP($A2,INDIRECT(""&$E$1&"!"&"$A$2:$D$59"),2,FALSE) -> 147900 | C2: =VLOOKUP($A2,INDIRECT(""&$E$1&"!"&"$A$2:$D$59"),3,FALSE) -> 112150 | D2: =VLOOKUP($A2,INDIRECT(""&$E$1&"!"&"$A$2:$D$59"),4,FALSE) -> 177500
A3: Alpine | B3: =VLOOKUP($A3,INDIRECT(""&$E$1&"!"&"$A$2:$D$59"),2,FALSE) -> 114600 | C3: =VLOOKUP($A3,INDIRECT(""&$E$1&"!"&"$A$2:$D$59"),3,FALSE) -> 76900 | D3: =VLOOKUP($A3,INDIRECT(""&$E$1&"!"&"$A$2:$D$59"),4,FALSE) -> 137500
A4: Amador | B4: 101200 | C4: 73350 | D4: 121450
A5: Butte | B5: 91600 | C5: 65950 | D5: 109900
A6: Calaveras | B6: 96200 | C6: 76250 | D6: 115450
A7: Colusa | B7: 83800 | C7: 65950 | D7: 100550
A8: Contra Costa | B8: 147900 | C8: 112150 | D8: 177500
A9: Del Norte | B9: 83800 | C9: 65950 | D9: 100550
A10: El Dorado | B10: 113900 | C10: 85750 | D10: 136700
A11: Fresno | B11: 83800 | C11: 65950 | D11: 100550
A12: Glenn | B12: 83800 | C12: 65950 | D12: 100550
A13: Humboldt | B13: 83800 | C13: 65950 | D13: 100550
A14: Imperial | B14: 83800 | C14: 65950 | D14: 100550
A15: Inyo | B15: 85400 | C15: 68300 | D15: 102500
A16: Kern | B16: 83800 | C16: 65950 | D16: 100550
A17: Kings | B17: 83800 | C17: 65950 | D17: 100550
A18: Lake | B18: 83800 | C18: 65950 | D18: 100550
A19: Lassen | B19: 83800 | C19: 67050 | D19: 100550
A20: Los Angeles | B20: 98200 | C20: 100900 | D20: 117850
A21: Madera | B21: 83800 | C21: 65950 | D21: 100550
A22: Marin | B22: 175000 | C22: 149100 | D22: 210000
A23: Mariposa | B23: 83800 | C23: 65950 | D23: 100550
A24: Mendocino | B24: 89700 | C24: 68000 | D24: 107650
A25: Merced | B25: 83800 | C25: 65950 | D25: 100550
A26: Modoc | B26: 83800 | C26: 65950 | D26: 100550
A27: Mono | B27: 95800 | C27: 68000 | D27: 114950
A28: Monterey | B28: 100400 | C28: 96350 | D28: 120500
A29: Napa | B29: 129600 | C29: 106700 | D29: 155500
A30: Nevada | B30: 112500 | C30: 83350 | D30: 135000
A31: Orange | B31: 127800 | C31: 114800 | D31: 153350
A32: Placer | B32: 113900 | C32: 85750 | D32: 136700
A33: Plumas | B33: 83800 | C33: 67050 | D33: 100550
A34: Riverside | B34: 94500 | C34: 74550 | D34: 113400
A35: Sacramento | B35: 113900 | C35: 85750 | D35: 136700
A36: San Benito | B36: 140200 | C36: 89050 | D36: 168250
A37: San Bernardino | B37: 94500 | C37: 74550 | D37: 113400
A38: San Diego | B38: 116800 | C38: 110250 | D38: 140150
A39: San Francisco | B39: 175000 | C39: 149100 | D39: 210000
A40: San Joaquin | B40: 100300 | C40: 70100 | D40: 120350
A41: San Luis Obispo | B41: 113100 | C41: 92650 | D41: 135700
A42: San Mateo | B42: 175000 | C42: 149100 | D42: 210000
A43: Santa Barbara | B43: 107300 | C43: 118500 | D43: 128750
A44: Santa Clara | B44: 181300 | C44: 137100 | D44: 217550
A45: Santa Cruz | B45: 132800 | C45: 132100 | D45: 159350
A46: Shasta | B46: 89800 | C46: 67200 | D46: 107750
A47: Sierra | B47: 90000 | C47: 72000 | D47: 108000
A48: Siskiyou | B48: 83800 | C48: 65950 | D48: 100550
A49: Solano | B49: 112600 | C49: 91500 | D49: 135100
A50: Sonoma | B50: 128100 | C50: 100650 | D50: 153700
A51: Stanislaus | B51: 92600 | C51: 67500 | D51: 111100
A52: Sutter | B52: 83800 | C52: 65950 | D52: 100550
A53: Tehama | B53: 83800 | C53: 65950 | D53: 100550
A54: Trinity | B54: 83800 | C54: 65950 | D54: 100550
A55: Tulare | B55: 83800 | C55: 65950 | D55: 100550
A56: Tuolumne | B56: 97700 | C56: 70450 | D56: 117250
A57: Ventura | B57: 123500 | C57: 106250 | D57: 148200
A58: Yolo | B58: 114000 | C58: 83900 | D58: 136800
A59: Yuba | B59: 83800 | C59: 65950 | D59: 100550

Sheet 2023 (hidden)
A1: County | B1: Median Income 2023 | C1: Low Income 2023 | D1: Moderate Income 2023
A2: Alameda | B2: 147900 | C2: 112150 | D2: 177500
A3: Alpine | B3: 114600 | C3: 76900 | D3: 137500
A4: Amador | B4: 101200 | C4: 73350 | D4: 121450
A5: Butte | B5: 91600 | C5: 65950 | D5: 109900
A6: Calaveras | B6: 96200 | C6: 76250 | D6: 115450
A7: Colusa | B7: 83800 | C7: 65950 | D7: 100550
A8: Contra Costa | B8: 147900 | C8: 112150 | D8: 177500
A9: Del Norte | B9: 83800 | C9: 65950 | D9: 100550
A10: El Dorado | B10: 113900 | C10: 85750 | D10: 136700
A11: Fresno | B11: 83800 | C11: 65950 | D11: 100550
A12: Glenn | B12: 83800 | C12: 65950 | D12: 100550
A13: Humboldt | B13: 83800 | C13: 65950 | D13: 100550
A14: Imperial | B14: 83800 | C14: 65950 | D14: 100550
A15: Inyo | B15: 85400 | C15: 68300 | D15: 102500
A16: Kern | B16: 83800 | C16: 65950 | D16: 100550
A17: Kings | B17: 83800 | C17: 65950 | D17: 100550
A18: Lake | B18: 83800 | C18: 65950 | D18: 100550
A19: Lassen | B19: 83800 | C19: 67050 | D19: 100550
A20: Los Angeles | B20: 98200 | C20: 100900 | D20: 117850
A21: Madera | B21: 83800 | C21: 65950 | D21: 100550
A22: Marin | B22: 175000 | C22: 149100 | D22: 210000
A23: Mariposa | B23: 83800 | C23: 65950 | D23: 100550
A24: Mendocino | B24: 89700 | C24: 68000 | D24: 107650
A25: Merced | B25: 83800 | C25: 65950 | D25: 100550
A26: Modoc | B26: 83800 | C26: 65950 | D26: 100550
A27: Mono | B27: 95800 | C27: 68000 | D27: 114950
A28: Monterey | B28: 100400 | C28: 96350 | D28: 120500
A29: Napa | B29: 129600 | C29: 106700 | D29: 155500
A30: Nevada | B30: 112500 | C30: 83350 | D30: 135000
A31: Orange | B31: 127800 | C31: 114800 | D31: 153350
A32: Placer | B32: 113900 | C32: 85750 | D32: 136700
A33: Plumas | B33: 83800 | C33: 67050 | D33: 100550
A34: Riverside | B34: 94500 | C34: 74550 | D34: 113400
A35: Sacramento | B35: 113900 | C35: 85750 | D35: 136700
A36: San Benito | B36: 140200 | C36: 89050 | D36: 168250
A37: San Bernardino | B37: 94500 | C37: 74550 | D37: 113400
A38: San Diego | B38: 116800 | C38: 110250 | D38: 140150
A39: San Francisco | B39: 175000 | C39: 149100 | D39: 210000
A40: San Joaquin | B40: 100300 | C40: 70100 | D40: 120350
A41: San Luis Obispo | B41: 113100 | C41: 92650 | D41: 135700
A42: San Mateo | B42: 175000 | C42: 149100 | D42: 210000
A43: Santa Barbara | B43: 107300 | C43: 118500 | D43: 128750
A44: Santa Clara | B44: 181300 | C44: 137100 | D44: 217550
A45: Santa Cruz | B45: 132800 | C45: 132100 | D45: 159350
A46: Shasta | B46: 89800 | C46: 67200 | D46: 107750
A47: Sierra | B47: 90000 | C47: 72000 | D47: 108000
A48: Siskiyou | B48: 83800 | C48: 65950 | D48: 100550
A49: Solano | B49: 112600 | C49: 91500 | D49: 135100
A50: Sonoma | B50: 128100 | C50: 100650 | D50: 153700
A51: Stanislaus | B51: 92600 | C51: 67500 | D51: 111100
A52: Sutter | B52: 83800 | C52: 65950 | D52: 100550
A53: Tehama | B53: 83800 | C53: 65950 | D53: 100550
A54: Trinity | B54: 83800 | C54: 65950 | D54: 100550
A55: Tulare | B55: 83800 | C55: 65950 | D55: 100550
A56: Tuolumne | B56: 97700 | C56: 70450 | D56: 117250
A57: Ventura | B57: 123500 | C57: 106250 | D57: 148200
A58: Yolo | B58: 114000 | C58: 83900 | D58: 136800
A59: Yuba | B59: 83800 | C59: 65950 | D59: 100550

Sheet 2022 (hidden)
A1: County | B1: Median Income 2022 | C1: Low Income 2022 | D1: Moderate Income 2022
A2: Alameda | B2: 142800 | C2: 109600 | D2: 171350
A3: Alpine | B3: 94900 | C3: 72650 | D3: 113900
A4: Amador | B4: 86600 | C4: 69300 | D4: 103900
A5: Butte | B5: 85000 | C5: 62300 | D5: 102000
A6: Calaveras | B6: 90000 | C6: 72000 | D6: 108000
A7: Colusa | B7: 80300 | C7: 62300 | D7: 96350
A8: Contra Costa | B8: 142800 | C8: 109600 | D8: 171350
A9: Del Norte | B9: 80300 | C9: 62300 | D9: 96350
A10: El Dorado | B10: 102200 | C10: 81050 | D10: 122650
A11: Fresno | B11: 80300 | C11: 62300 | D11: 96350
A12: Glenn | B12: 80300 | C12: 62300 | D12: 96350
A13: Humboldt | B13: 80300 | C13: 62300 | D13: 96350
A14: Imperial | B14: 80300 | C14: 62300 | D14: 96350
A15: Inyo | B15: 82700 | C15: 66150 | D15: 99250
A16: Kern | B16: 80300 | C16: 62300 | D16: 96350
A17: Kings | B17: 80300 | C17: 62300 | D17: 96350
A18: Lake | B18: 80300 | C18: 62300 | D18: 96350
A19: Lassen | B19: 80300 | C19: 64250 | D19: 96350
A20: Los Angeles | B20: 91100 | C20: 95300 | D20: 109300
A21: Madera | B21: 80300 | C21: 62300 | D21: 96350
A22: Marin | B22: 166000 | C22: 149100 | D22: 199200
A23: Mariposa | B23: 80300 | C23: 62300 | D23: 96350
A24: Mendocino | B24: 80300 | C24: 64250 | D24: 96350
A25: Merced | B25: 80300 | C25: 62300 | D25: 96350
A26: Modoc | B26: 80300 | C26: 62300 | D26: 96350
A27: Mono | B27: 81200 | C27: 64700 | D27: 97450
A28: Monterey | B28: 90100 | C28: 91000 | D28: 108100
A29: Napa | B29: 119400 | C29: 100750 | D29: 143300
A30: Nevada | B30: 98400 | C30: 78700 | D30: 118100
A31: Orange | B31: 119100 | C31: 108400 | D31: 142900
A32: Placer | B32: 102200 | C32: 81050 | D32: 122650
A33: Plumas | B33: 82400 | C33: 65350 | D33: 98900
A34: Riverside | B34: 87400 | C34: 70400 | D34: 104900
A35: Sacramento | B35: 102200 | C35: 81050 | D35: 122650
A36: San Benito | B36: 105100 | C36: 84100 | D36: 126100
A37: San Bernardino | B37: 87400 | C37: 70400 | D37: 104900
A38: San Diego | B38: 106900 | C38: 104100 | D38: 128300
A39: San Francisco | B39: 166000 | C39: 149100 | D39: 199200
A40: San Joaquin | B40: 85000 | C40: 66200 | D40: 102000
A41: San Luis Obispo | B41: 109200 | C41: 87500 | D41: 131050
A42: San Mateo | B42: 166000 | C42: 149100 | D42: 199200
A43: Santa Barbara | B43: 100100 | C43: 111900 | D43: 120100
A44: Santa Clara | B44: 168500 | C44: 131750 | D44: 202200
A45: Santa Cruz | B45: 119300 | C45: 124750 | D45: 143150
A46: Shasta | B46: 89800 | C46: 63500 | D46: 107750
A47: Sierra | B47: 90000 | C47: 72000 | D47: 108000
A48: Siskiyou | B48: 80300 | C48: 62300 | D48: 96350
A49: Solano | B49: 108700 | C49: 86800 | D49: 130450
A50: Sonoma | B50: 112800 | C50: 95050 | D50: 135350
A51: Stanislaus | B51: 80300 | C51: 63750 | D51: 96350
A52: Sutter | B52: 80300 | C52: 62300 | D52: 96350
A53: Tehama | B53: 80300 | C53: 62300 | D53: 96350
A54: Trinity | B54: 80300 | C54: 62300 | D54: 96350
A55: Tulare | B55: 80300 | C55: 62300 | D55: 96350
A56: Tuolumne | B56: 84300 | C56: 66550 | D56: 101150
A57: Ventura | B57: 115400 | C57: 100350 | D57: 138500
A58: Yolo | B58: 106600 | C58: 79300 | D58: 127900
A59: Yuba | B59: 80300 | C59: 62300 | D59: 96350

Sheet 2021 (hidden)
A1: County | B1: Median Income 2021 | C1: Low Income 2021 | D1: Moderate Income 2021
A2: Alameda | B2: 125600 | C2: 109600 | D2: 150700
A3: Alpine | B3: 94900 | C3: 66550 | D3: 113900
A4: Amador | B4: 78700 | C4: 62950 | D4: 94450
A5: Butte | B5: 70700 | C5: 56550 | D5: 84850
A6: Calaveras | B6: 81700 | C6: 65350 | D6: 98050
A7: Colusa | B7: 70700 | C7: 55900 | D7: 84850
A8: Contra Costa | B8: 125600 | C8: 109600 | D8: 150700
A9: Del Norte | B9: 70700 | C9: 55900 | D9: 84850
A10: El Dorado | B10: 91100 | C10: 72500 | D10: 109300
A11: Fresno | B11: 70700 | C11: 55900 | D11: 84850
A12: Glenn | B12: 70700 | C12: 55900 | D12: 84850
A13: Humboldt | B13: 72000 | C13: 55900 | D13: 86400
A14: Imperial | B14: 70700 | C14: 55900 | D14: 84850
A15: Inyo | B15: 75100 | C15: 60100 | D15: 90100
A16: Kern | B16: 70700 | C16: 55900 | D16: 84850
A17: Kings | B17: 70700 | C17: 55900 | D17: 84850
A18: Lake | B18: 70700 | C18: 55900 | D18: 84850
A19: Lassen | B19: 72200 | C19: 57750 | D19: 86650
A20: Los Angeles | B20: 80000 | C20: 94600 | D20: 96000
A21: Madera | B21: 70700 | C21: 55900 | D21: 84850
A22: Marin | B22: 149600 | C22: 146350 | D22: 179500
A23: Mariposa | B23: 70700 | C23: 55900 | D23: 84850
A24: Mendocino | B24: 70700 | C24: 57850 | D24: 84850
A25: Merced | B25: 70700 | C25: 55900 | D25: 84850
A26: Modoc | B26: 70700 | C26: 55900 | D26: 84850
A27: Mono | B27: 81200 | C27: 64700 | D27: 97450
A28: Monterey | B28: 81600 | C28: 81350 | D28: 97900
A29: Napa | B29: 109200 | C29: 90050 | D29: 131050
A30: Nevada | B30: 92400 | C30: 71850 | D30: 110900
A31: Orange | B31: 106700 | C31: 107550 | D31: 128050
A32: Placer | B32: 91100 | C32: 72500 | D32: 109300
A33: Plumas | B33: 73100 | C33: 58500 | D33: 87700
A34: Riverside | B34: 77500 | C34: 63200 | D34: 93000
A35: Sacramento | B35: 91100 | C35: 72500 | D35: 109300
A36: San Benito | B36: 90700 | C36: 81600 | D36: 108850
A37: San Bernardino | B37: 77500 | C37: 63200 | D37: 93000
A38: San Diego | B38: 95100 | C38: 97000 | D38: 114100
A39: San Francisco | B39: 149600 | C39: 146350 | D39: 179500
A40: San Joaquin | B40: 75000 | C40: 60000 | D40: 90000
A41: San Luis Obispo | B41: 97800 | C41: 78250 | D41: 117350
A42: San Mateo | B42: 149600 | C42: 146350 | D42: 179500
A43: Santa Barbara | B43: 90100 | C43: 100050 | D43: 108100
A44: Santa Clara | B44: 151300 | C44: 117750 | D44: 181550
A45: Santa Cruz | B45: 111900 | C45: 111500 | D45: 134300
A46: Shasta | B46: 70700 | C46: 56800 | D46: 84850
A47: Sierra | B47: 84800 | C47: 67600 | D47: 101750
A48: Siskiyou | B48: 70700 | C48: 55900 | D48: 84850
A49: Solano | B49: 99300 | C49: 77600 | D49: 119150
A50: Sonoma | B50: 103300 | C50: 93050 | D50: 123950
A51: Stanislaus | B51: 70700 | C51: 57050 | D51: 84850
A52: Sutter | B52: 75000 | C52: 55900 | D52: 90000
A53: Tehama | B53: 70700 | C53: 55900 | D53: 84850
A54: Trinity | B54: 70700 | C54: 55900 | D54: 84850
A55: Tulare | B55: 70700 | C55: 55900 | D55: 84850
A56: Tuolumne | B56: 75600 | C56: 59500 | D56: 90700
A57: Ventura | B57: 98800 | C57: 90350 | D57: 118550
A58: Yolo | B58: 92500 | C58: 74000 | D58: 111000
A59: Yuba | B59: 75000 | C59: 55900 | D59: 90000

Sheet 2020 (hidden)
A1: County | B1: Median Income 2020 | C1: Low Income 2020 | D1: Moderate Income 2020
A2: Alameda | B2: 119200 | C2: 104400 | D2: 143050
A3: Alpine | B3: 94900 | C3: 66550 | D3: 113900
A4: Amador | B4: 78700 | C4: 62950 | D4: 94450
A5: Butte | B5: 70700 | C5: 56550 | D5: 84850
A6: Calaveras | B6: 80400 | C6: 64300 | D6: 96500
A7: Colusa | B7: 70700 | C7: 55900 | D7: 84850
A8: Contra Costa | B8: 119200 | C8: 104400 | D8: 143050
A9: Del Norte | B9: 70700 | C9: 55900 | D9: 84850
A10: El Dorado | B10: 86300 | C10: 69050 | D10: 103550
A11: Fresno | B11: 70700 | C11: 55900 | D11: 84850
A12: Glenn | B12: 70700 | C12: 55900 | D12: 84850
A13: Humboldt | B13: 72000 | C13: 55900 | D13: 86400
A14: Imperial | B14: 70700 | C14: 55900 | D14: 84850
A15: Inyo | B15: 75100 | C15: 60100 | D15: 90100
A16: Kern | B16: 70700 | C16: 55900 | D16: 84850
A17: Kings | B17: 70700 | C17: 55900 | D17: 84850
A18: Lake | B18: 70700 | C18: 55900 | D18: 84850
A19: Lassen | B19: 70700 | C19: 56550 | D19: 84850
A20: Los Angeles | B20: 77300 | C20: 90100 | D20: 92750
A21: Madera | B21: 70700 | C21: 55900 | D21: 84850
A22: Marin | B22: 143100 | C22: 139400 | D22: 171700
A23: Mariposa | B23: 70700 | C23: 55900 | D23: 84850
A24: Mendocino | B24: 70700 | C24: 55900 | D24: 84850
A25: Merced | B25: 70700 | C25: 55900 | D25: 84850
A26: Modoc | B26: 70700 | C26: 55900 | D26: 84850
A27: Mono | B27: 81200 | C27: 64700 | D27: 97450
A28: Monterey | B28: 81600 | C28: 77500 | D28: 97900
A29: Napa | B29: 109200 | C29: 85800 | D29: 131050
A30: Nevada | B30: 92400 | C30: 68800 | D30: 110900
A31: Orange | B31: 103000 | C31: 102450 | D31: 123600
A32: Placer | B32: 86300 | C32: 69050 | D32: 103550
A33: Plumas | B33: 72200 | C33: 57750 | D33: 86650
A34: Riverside | B34: 75300 | C34: 60250 | D34: 90350
A35: Sacramento | B35: 86300 | C35: 69050 | D35: 103550
A36: San Benito | B36: 89700 | C36: 81600 | D36: 107650
A37: San Bernardino | B37: 75300 | C37: 60250 | D37: 90350
A38: San Diego | B38: 92700 | C38: 92400 | D38: 111250
A39: San Francisco | B39: 143100 | C39: 139400 | D39: 171700
A40: San Joaquin | B40: 75000 | C40: 60000 | D40: 90000
A41: San Luis Obispo | B41: 97300 | C41: 77600 | D41: 116750
A42: San Mateo | B42: 143100 | C42: 139400 | D42: 171700
A43: Santa Barbara | B43: 87800 | C43: 95300 | D43: 105350
A44: Santa Clara | B44: 141600 | C44: 112150 | D44: 169900
A45: Santa Cruz | B45: 110000 | C45: 106200 | D45: 132000
A46: Shasta | B46: 70700 | C46: 55900 | D46: 84850
A47: Sierra | B47: 80500 | C47: 64400 | D47: 96600
A48: Siskiyou | B48: 70700 | C48: 55900 | D48: 84850
A49: Solano | B49: 95400 | C49: 73950 | D49: 114500
A50: Sonoma | B50: 102700 | C50: 90900 | D50: 123250
A51: Stanislaus | B51: 70700 | C51: 55900 | D51: 84850
A52: Sutter | B52: 75000 | C52: 55900 | D52: 90000
A53: Tehama | B53: 70700 | C53: 55900 | D53: 84850
A54: Trinity | B54: 70700 | C54: 55900 | D54: 84850
A55: Tulare | B55: 70700 | C55: 55900 | D55: 84850
A56: Tuolumne | B56: 71600 | C56: 56700 | D56: 85900
A57: Ventura | B57: 97800 | C57: 90350 | D57: 117350
A58: Yolo | B58: 92500 | C58: 74000 | D58: 111000
A59: Yuba | B59: 75000 | C59: 55900 | D59: 90000

Sheet 2019 (hidden)
A1: County | B1: Median Income 2019 | C1: Low Income 2019 | D1: Moderate Income 2019
A2: Alameda | B2: 111700 | C2: 98550 | D2: 134050
A3: Alpine | B3: 94900 | C3: 65800 | D3: 113900
A4: Amador | B4: 73600 | C4: 58900 | D4: 88300
A5: Butte | B5: 66500 | C5: 53200 | D5: 79800
A6: Calaveras | B6: 75300 | C6: 60250 | D6: 90350
A7: Colusa | B7: 64800 | C7: 51850 | D7: 77750
A8: Contra Costa | B8: 111700 | C8: 98550 | D8: 134050
A9: Del Norte | B9: 64800 | C9: 51850 | D9: 77750
A10: El Dorado | B10: 83600 | C10: 66900 | D10: 100300
A11: Fresno | B11: 64800 | C11: 51850 | D11: 77750
A12: Glenn | B12: 64800 | C12: 51850 | D12: 77750
A13: Humboldt | B13: 64800 | C13: 51850 | D13: 77750
A14: Imperial | B14: 64800 | C14: 51850 | D14: 77750
A15: Inyo | B15: 72700 | C15: 58150 | D15: 87250
A16: Kern | B16: 64800 | C16: 51850 | D16: 77750
A17: Kings | B17: 64800 | C17: 51850 | D17: 77750
A18: Lake | B18: 64800 | C18: 51850 | D18: 77750
A19: Lassen | B19: 69400 | C19: 55500 | D19: 83300
A20: Los Angeles | B20: 73100 | C20: 83500 | D20: 87700
A21: Madera | B21: 64800 | C21: 51850 | D21: 77750
A22: Marin | B22: 136800 | C22: 129150 | D22: 164150
A23: Mariposa | B23: 65500 | C23: 52400 | D23: 78600
A24: Mendocino | B24: 64800 | C24: 51850 | D24: 77750
A25: Merced | B25: 64800 | C25: 51850 | D25: 77750
A26: Modoc | B26: 64800 | C26: 51850 | D26: 77750
A27: Mono | B27: 81200 | C27: 63900 | D27: 97450
A28: Monterey | B28: 74100 | C28: 71850 | D28: 88900
A29: Napa | B29: 100400 | C29: 79500 | D29: 120500
A30: Nevada | B30: 85100 | C30: 63750 | D30: 102100
A31: Orange | B31: 97900 | C31: 94950 | D31: 117500
A32: Placer | B32: 83600 | C32: 66900 | D32: 100300
A33: Plumas | B33: 70700 | C33: 55700 | D33: 84850
A34: Riverside | B34: 69700 | C34: 57450 | D34: 83650
A35: Sacramento | B35: 83600 | C35: 66900 | D35: 100300
A36: San Benito | B36: 84500 | C36: 81600 | D36: 101400
A37: San Bernardino | B37: 69700 | C37: 57450 | D37: 83650
A38: San Diego | B38: 86300 | C38: 85600 | D38: 103550
A39: San Francisco | B39: 136800 | C39: 129150 | D39: 164150
A40: San Joaquin | B40: 71400 | C40: 56000 | D40: 85700
A41: San Luis Obispo | B41: 87500 | C41: 71900 | D41: 105000
A42: San Mateo | B42: 136800 | C42: 129150 | D42: 164150
A43: Santa Barbara | B43: 79600 | C43: 88300 | D43: 95500
A44: Santa Clara | B44: 131400 | C44: 103900 | D44: 157700
A45: Santa Cruz | B45: 98000 | C45: 98400 | D45: 117600
A46: Shasta | B46: 64800 | C46: 51850 | D46: 77750
A47: Sierra | B47: 71800 | C47: 60300 | D47: 86150
A48: Siskiyou | B48: 64800 | C48: 51850 | D48: 77750
A49: Solano | B49: 85700 | C49: 68550 | D49: 102850
A50: Sonoma | B50: 93300 | C50: 86400 | D50: 111950
A51: Stanislaus | B51: 64800 | C51: 51850 | D51: 77750
A52: Sutter | B52: 64800 | C52: 51850 | D52: 77750
A53: Tehama | B53: 64800 | C53: 51850 | D53: 77750
A54: Trinity | B54: 64800 | C54: 51850 | D54: 77750
A55: Tulare | B55: 64800 | C55: 51850 | D55: 77750
A56: Tuolumne | B56: 66700 | C56: 53100 | D56: 80050
A57: Ventura | B57: 97800 | C57: 83700 | D57: 117350
A58: Yolo | B58: 87900 | C58: 70300 | D58: 105500
A59: Yuba | B59: 64800 | C59: 51850 | D59: 77750

Sheet 2018 (hidden)
A1: County | B1: Median Income 2018 | C1: Low Income 2018 | D1: Moderate Income 2018
A2: Alameda | B2: 104400 | C2: 89600 | D2: 125300
A3: Alpine | B3: 94900 | C3: 65800 | D3: 113900
A4: Amador | B4: 73600 | C4: 58900 | D4: 88300
A5: Butte | B5: 62600 | C5: 50100 | D5: 75100
A6: Calaveras | B6: 72300 | C6: 57850 | D6: 86750
A7: Colusa | B7: 59900 | C7: 47900 | D7: 71900
A8: Contra Costa | B8: 104400 | C8: 89600 | D8: 125300
A9: Del Norte | B9: 59900 | C9: 47900 | D9: 71900
A10: El Dorado | B10: 80100 | C10: 64100 | D10: 96100
A11: Fresno | B11: 59900 | C11: 47900 | D11: 71900
A12: Glenn | B12: 59900 | C12: 47900 | D12: 71900
A13: Humboldt | B13: 59900 | C13: 47900 | D13: 71900
A14: Imperial | B14: 59900 | C14: 47900 | D14: 71900
A15: Inyo | B15: 72000 | C15: 57600 | D15: 86400
A16: Kern | B16: 59900 | C16: 47900 | D16: 71900
A17: Kings | B17: 59900 | C17: 47900 | D17: 71900
A18: Lake | B18: 59900 | C18: 47900 | D18: 71900
A19: Lassen | B19: 69400 | C19: 55500 | D19: 83300
A20: Los Angeles | B20: 69300 | C20: 77500 | D20: 83150
A21: Madera | B21: 59900 | C21: 47900 | D21: 71900
A22: Marin | B22: 118400 | C22: 117400 | D22: 142100
A23: Mariposa | B23: 65500 | C23: 52400 | D23: 78600
A24: Mendocino | B24: 60600 | C24: 48700 | D24: 72700
A25: Merced | B25: 59900 | C25: 47900 | D25: 71900
A26: Modoc | B26: 59900 | C26: 47900 | D26: 71900
A27: Mono | B27: 81200 | C27: 63900 | D27: 97450
A28: Monterey | B28: 69100 | C28: 66800 | D28: 82900
A29: Napa | B29: 91000 | C29: 74500 | D29: 109200
A30: Nevada | B30: 73500 | C30: 61300 | D30: 88200
A31: Orange | B31: 92700 | C31: 87450 | D31: 111250
A32: Placer | B32: 80100 | C32: 64100 | D32: 96100
A33: Plumas | B33: 63300 | C33: 50650 | D33: 75950
A34: Riverside | B34: 65800 | C34: 53900 | D34: 78950
A35: Sacramento | B35: 80100 | C35: 64100 | D35: 96100
A36: San Benito | B36: 81100 | C36: 74550 | D36: 97300
A37: San Bernardino | B37: 65800 | C37: 53900 | D37: 78950
A38: San Diego | B38: 81800 | C38: 77850 | D38: 98150
A39: San Francisco | B39: 118400 | C39: 117400 | D39: 142100
A40: San Joaquin | B40: 66300 | C40: 53050 | D40: 79550
A41: San Luis Obispo | B41: 83200 | C41: 66550 | D41: 99850
A42: San Mateo | B42: 118400 | C42: 117400 | D42: 142100
A43: Santa Barbara | B43: 79600 | C43: 80300 | D43: 95500
A44: Santa Clara | B44: 125200 | C44: 94450 | D44: 150250
A45: Santa Cruz | B45: 87000 | C45: 89450 | D45: 104400
A46: Shasta | B46: 61800 | C46: 49450 | D46: 74150
A47: Sierra | B47: 71800 | C47: 56250 | D47: 86150
A48: Siskiyou | B48: 59900 | C48: 47900 | D48: 71900
A49: Solano | B49: 83700 | C49: 66950 | D49: 100450
A50: Sonoma | B50: 84100 | C50: 78550 | D50: 100900
A51: Stanislaus | B51: 62000 | C51: 49600 | D51: 74400
A52: Sutter | B52: 60000 | C52: 48000 | D52: 72000
A53: Tehama | B53: 59900 | C53: 47900 | D53: 71900
A54: Trinity | B54: 59900 | C54: 47900 | D54: 71900
A55: Tulare | B55: 59900 | C55: 47900 | D55: 71900
A56: Tuolumne | B56: 66700 | C56: 53100 | D56: 80050
A57: Ventura | B57: 96000 | C57: 81100 | D57: 115200
A58: Yolo | B58: 85100 | C58: 66550 | D58: 102100
A59: Yuba | B59: 60000 | C59: 48000 | D59: 72000

Sheet 2017 (hidden)
A1: County | B1: Median Income 2017 | C1: Low Income 2017 | D1: Moderate Income 2017
A2: Alameda | B2: 97400 | C2: 80400 | D2: 116900
A3: Alpine | B3: 94900 | C3: 65800 | D3: 113900
A4: Amador | B4: 72300 | C4: 57850 | D4: 86750
A5: Butte | B5: 62600 | C5: 50100 | D5: 75100
A6: Calaveras | B6: 70200 | C6: 56150 | D6: 84250
A7: Colusa | B7: 59900 | C7: 47900 | D7: 71900
A8: Contra Costa | B8: 97400 | C8: 80400 | D8: 116900
A9: Del Norte | B9: 59900 | C9: 47900 | D9: 71900
A10: El Dorado | B10: 76100 | C10: 60900 | D10: 91300
A11: Fresno | B11: 59900 | C11: 47900 | D11: 71900
A12: Glenn | B12: 59900 | C12: 47900 | D12: 71900
A13: Humboldt | B13: 59900 | C13: 47900 | D13: 71900
A14: Imperial | B14: 59900 | C14: 47900 | D14: 71900
A15: Inyo | B15: 72000 | C15: 57600 | D15: 86400
A16: Kern | B16: 59900 | C16: 47900 | D16: 71900
A17: Kings | B17: 59900 | C17: 47900 | D17: 71900
A18: Lake | B18: 59900 | C18: 47900 | D18: 71900
A19: Lassen | B19: 69400 | C19: 55500 | D19: 83300
A20: Los Angeles | B20: 64800 | C20: 72100 | D20: 77750
A21: Madera | B21: 59900 | C21: 47900 | D21: 71900
A22: Marin | B22: 115300 | C22: 105350 | D22: 138350
A23: Mariposa | B23: 65500 | C23: 52400 | D23: 78600
A24: Mendocino | B24: 59900 | C24: 48700 | D24: 71900
A25: Merced | B25: 59900 | C25: 47900 | D25: 71900
A26: Modoc | B26: 59900 | C26: 47900 | D26: 71900
A27: Mono | B27: 81200 | C27: 63900 | D27: 97450
A28: Monterey | B28: 68700 | C28: 65100 | D28: 82450
A29: Napa | B29: 91000 | C29: 74500 | D29: 109200
A30: Nevada | B30: 73500 | C30: 61300 | D30: 88200
A31: Orange | B31: 88000 | C31: 83450 | D31: 105600
A32: Placer | B32: 76100 | C32: 60900 | D32: 91300
A33: Plumas | B33: 62600 | C33: 50100 | D33: 75100
A34: Riverside | B34: 65000 | C34: 53600 | D34: 78000
A35: Sacramento | B35: 76100 | C35: 60900 | D35: 91300
A36: San Benito | B36: 81100 | C36: 66900 | D36: 97300
A37: San Bernardino | B37: 65000 | C37: 53600 | D37: 78000
A38: San Diego | B38: 79300 | C38: 72750 | D38: 95150
A39: San Francisco | B39: 115300 | C39: 105350 | D39: 138350
A40: San Joaquin | B40: 66300 | C40: 53050 | D40: 79550
A41: San Luis Obispo | B41: 83200 | C41: 65350 | D41: 99850
A42: San Mateo | B42: 115300 | C42: 105350 | D42: 138350
A43: Santa Barbara | B43: 77100 | C43: 72050 | D43: 92500
A44: Santa Clara | B44: 113300 | C44: 84900 | D44: 135950
A45: Santa Cruz | B45: 87000 | C45: 80650 | D45: 104400
A46: Shasta | B46: 61800 | C46: 49450 | D46: 74150
A47: Sierra | B47: 71800 | C47: 56250 | D47: 86150
A48: Siskiyou | B48: 59900 | C48: 47900 | D48: 71900
A49: Solano | B49: 82600 | C49: 65000 | D49: 99100
A50: Sonoma | B50: 83900 | C50: 70500 | D50: 100700
A51: Stanislaus | B51: 62000 | C51: 49600 | D51: 74400
A52: Sutter | B52: 59900 | C52: 47900 | D52: 71900
A53: Tehama | B53: 59900 | C53: 47900 | D53: 71900
A54: Trinity | B54: 59900 | C54: 47900 | D54: 71900
A55: Tulare | B55: 59900 | C55: 47900 | D55: 71900
A56: Tuolumne | B56: 66700 | C56: 53100 | D56: 80050
A57: Ventura | B57: 89300 | C57: 79900 | D57: 107150
A58: Yolo | B58: 76900 | C58: 61500 | D58: 92300
A59: Yuba | B59: 59900 | C59: 47900 | D59: 71900

Sheet 2016 (hidden)
A1: County | B1: Median Income 2016 | C1: Low Income 2016 | D1: Moderate Income 2016
A2: Alameda | B2: 93600 | C2: 75150 | D2: 112300 | E2: 7
A3: Alpine | B3: 94900 | C3: 65800 | D3: 113900 | E3: =E2+6 -> 13
A4: Amador | B4: 72300 | C4: 57850 | D4: 86750 | E4: =E3+6 -> 19
A5: Butte | B5: 58900 | C5: 47100 | D5: 70700 | E5: 25
A6: Calaveras | B6: 70200 | C6: 56150 | D6: 84250 | E6: 31
A7: Colusa | B7: 58900 | C7: 47100 | D7: 70700 | E7: 37
A8: Contra Costa | B8: 93600 | C8: 75150 | D8: 112300 | E8: 43
A9: Del Norte | B9: 58900 | C9: 47100 | D9: 70700 | E9: 49
A10: El Dorado | B10: 76100 | C10: 60900 | D10: 91300 | E10: 55
A11: Fresno | B11: 58900 | C11: 47100 | D11: 70700 | E11: 61
A12: Glenn | B12: 58900 | C12: 47100 | D12: 70700 | E12: 67
A13: Humboldt | B13: 58900 | C13: 47100 | D13: 70700 | E13: 73
A14: Imperial | B14: 58900 | C14: 47100 | D14: 70700 | E14: 79
A15: Inyo | B15: 72000 | C15: 57600 | D15: 86400 | E15: 85
A16: Kern | B16: 58900 | C16: 47100 | D16: 70700 | E16: 91
A17: Kings | B17: 58900 | C17: 47100 | D17: 70700 | E17: 97
A18: Lake | B18: 58900 | C18: 47100 | D18: 70700 | E18: 103
A19: Lassen | B19: 69400 | C19: 55500 | D19: 83300 | E19: 109
A20: Los Angeles | B20: 64800 | C20: 69450 | D20: 77750 | E20: 115
A21: Madera | B21: 58900 | C21: 47100 | D21: 70700 | E21: 121
A22: Marin | B22: 107700 | C22: 98500 | D22: 129250 | E22: 127
A23: Mariposa | B23: 63900 | C23: 51100 | D23: 76700 | E23: 133
A24: Mendocino | B24: 58900 | C24: 48700 | D24: 70700 | E24: 139
A25: Merced | B25: 58900 | C25: 47100 | D25: 70700 | E25: 145
A26: Modoc | B26: 58900 | C26: 47100 | D26: 70700 | E26: 151
A27: Mono | B27: 81200 | C27: 63900 | D27: 97450 | E27: 157
A28: Monterey | B28: 68700 | C28: 60900 | D28: 82450 | E28: 163
A29: Napa | B29: 86100 | C29: 69900 | D29: 103300 | E29: 169
A30: Nevada | B30: 73500 | C30: 61300 | D30: 88200 | E30: 175
A31: Orange | B31: 87200 | C31: 78000 | D31: 104650 | E31: 181
A32: Placer | B32: 76100 | C32: 60900 | D32: 91300 | E32: 187
A33: Plumas | B33: 62000 | C33: 49600 | D33: 74400 | E33: 193
A34: Riverside | B34: 65000 | C34: 53600 | D34: 78000 | E34: 199
A35: Sacramento | B35: 76100 | C35: 60900 | D35: 91300 | E35: 205
A36: San Benito | B36: 81100 | C36: 64400 | D36: 97300 | E36: 211
A37: San Bernardino | B37: 65000 | C37: 53600 | D37: 78000 | E37: 217
A38: San Diego | B38: 75900 | C38: 68000 | D38: 91100 | E38: 223
A39: San Francisco | B39: 107700 | C39: 98500 | D39: 129250 | E39: 229
A40: San Joaquin | B40: 66300 | C40: 53050 | D40: 79550 | E40: 235
A41: San Luis Obispo | B41: 77100 | C41: 61700 | D41: 92500 | E41: 241
A42: San Mateo | B42: 107700 | C42: 98500 | D42: 129250 | E42: 247
A43: Santa Barbara | B43: 77100 | C43: 67350 | D43: 92500 | E43: 253
A44: Santa Clara | B44: 107100 | C44: 84900 | D44: 128500 | E44: 259
A45: Santa Cruz | B45: 87000 | C45: 80650 | D45: 104400 | E45: 265
A46: Shasta | B46: 59000 | C46: 47200 | D46: 70800 | E46: 271
A47: Sierra | B47: 71800 | C47: 56250 | D47: 86150 | E47: 277
A48: Siskiyou | B48: 58900 | C48: 47100 | D48: 70700 | E48: 283
A49: Solano | B49: 82600 | C49: 65000 | D49: 99100 | E49: 289
A50: Sonoma | B50: 82600 | C50: 65900 | D50: 99100 | E50: 295
A51: Stanislaus | B51: 62000 | C51: 49600 | D51: 74400 | E51: 301
A52: Sutter | B52: 59400 | C52: 47500 | D52: 71300 | E52: 307
A53: Tehama | B53: 58900 | C53: 47100 | D53: 70700 | E53: 313
A54: Trinity | B54: 58900 | C54: 47100 | D54: 70700 | E54: 319
A55: Tulare | B55: 58900 | C55: 47100 | D55: 70700 | E55: 325
A56: Tuolumne | B56: 66700 | C56: 53100 | D56: 80050 | E56: 331
A57: Ventura | B57: 89300 | C57: 74700 | D57: 107150 | E57: 337
A58: Yolo | B58: 76900 | C58: 61500 | D58: 92300 | E58: 343
A59: Yuba | B59: 59400 | C59: 47500 | D59: 71300 | E59: 349

Sheet 2015 (hidden)
A1: County | B1: Median Income 2015 | C1: Low Income 2015 | D1: Moderate Income 2015
A2: Alameda | B2: 93500 | C2: 71600 | D2: 112200 | E2: 7
A3: Alpine | B3: 94900 | C3: 65800 | D3: 113900 | E3: =E2+6 -> 13
A4: Amador | B4: 72300 | C4: 57850 | D4: 86750 | E4: =E3+6 -> 19
A5: Butte | B5: 58700 | C5: 46950 | D5: 70450 | E5: 25
A6: Calaveras | B6: 70200 | C6: 56150 | D6: 84250 | E6: 31
A7: Colusa | B7: 58700 | C7: 46950 | D7: 70450 | E7: 37
A8: Contra Costa | B8: 93500 | C8: 71600 | D8: 112200 | E8: 43
A9: Del Norte | B9: 57900 | C9: 46300 | D9: 69500 | E9: 49
A10: El Dorado | B10: 76100 | C10: 60900 | D10: 91300 | E10: 55
A11: Fresno | B11: 57900 | C11: 46300 | D11: 69500 | E11: 61
A12: Glenn | B12: 57900 | C12: 46300 | D12: 69500 | E12: 67
A13: Humboldt | B13: 57900 | C13: 46300 | D13: 69500 | E13: 73
A14: Imperial | B14: 57900 | C14: 46300 | D14: 69500 | E14: 79
A15: Inyo | B15: 71500 | C15: 57200 | D15: 85800 | E15: 85
A16: Kern | B16: 57900 | C16: 46300 | D16: 69500 | E16: 91
A17: Kings | B17: 57900 | C17: 46300 | D17: 69500 | E17: 97
A18: Lake | B18: 57900 | C18: 46300 | D18: 69500 | E18: 103
A19: Lassen | B19: 69400 | C19: 55500 | D19: 83300 | E19: 109
A20: Los Angeles | B20: 64800 | C20: 68300 | D20: 77750 | E20: 115
A21: Madera | B21: 57900 | C21: 46300 | D21: 69500 | E21: 121
A22: Marin | B22: 103000 | C22: 93850 | D22: 123600 | E22: 127
A23: Mariposa | B23: 61900 | C23: 49500 | D23: 74300 | E23: 133
A24: Mendocino | B24: 58900 | C24: 46400 | D24: 70700 | E24: 139
A25: Merced | B25: 57900 | C25: 46300 | D25: 69500 | E25: 145
A26: Modoc | B26: 57900 | C26: 46300 | D26: 69500 | E26: 151
A27: Mono | B27: 81200 | C27: 63900 | D27: 97450 | E27: 157
A28: Monterey | B28: 68700 | C28: 58000 | D28: 82450 | E28: 163
A29: Napa | B29: 86100 | C29: 69800 | D29: 103300 | E29: 169
A30: Nevada | B30: 73500 | C30: 61300 | D30: 88200 | E30: 175
A31: Orange | B31: 87200 | C31: 77050 | D31: 104650 | E31: 181
A32: Placer | B32: 76100 | C32: 60900 | D32: 91300 | E32: 187
A33: Plumas | B33: 62000 | C33: 49600 | D33: 74400 | E33: 193
A34: Riverside | B34: 65000 | C34: 53600 | D34: 78000 | E34: 199
A35: Sacramento | B35: 76100 | C35: 60900 | D35: 91300 | E35: 205
A36: San Benito | B36: 81100 | C36: 64400 | D36: 97300 | E36: 211
A37: San Bernardino | B37: 65000 | C37: 53600 | D37: 78000 | E37: 217
A38: San Diego | B38: 75900 | C38: 66100 | D38: 91100 | E38: 223
A39: San Francisco | B39: 103000 | C39: 93850 | D39: 123600 | E39: 229
A40: San Joaquin | B40: 66300 | C40: 53050 | D40: 79550 | E40: 235
A41: San Luis Obispo | B41: 77100 | C41: 61700 | D41: 92500 | E41: 241
A42: San Mateo | B42: 103000 | C42: 93850 | D42: 123600 | E42: 247
A43: Santa Barbara | B43: 75400 | C43: 64150 | D43: 90500 | E43: 253
A44: Santa Clara | B44: 106300 | C44: 84900 | D44: 127550 | E44: 259
A45: Santa Cruz | B45: 87000 | C45: 80650 | D45: 104400 | E45: 265
A46: Shasta | B46: 59000 | C46: 47200 | D46: 70800 | E46: 271
A47: Sierra | B47: 71800 | C47: 56250 | D47: 86150 | E47: 277
A48: Siskiyou | B48: 57900 | C48: 46300 | D48: 69500 | E48: 283
A49: Solano | B49: 82600 | C49: 65000 | D49: 99100 | E49: 289
A50: Sonoma | B50: 82600 | C50: 65000 | D50: 99100 | E50: 295
A51: Stanislaus | B51: 62000 | C51: 49600 | D51: 74400 | E51: 301
A52: Sutter | B52: 59400 | C52: 47500 | D52: 71300 | E52: 307
A53: Tehama | B53: 57900 | C53: 46300 | D53: 69500 | E53: 313
A54: Trinity | B54: 57900 | C54: 46300 | D54: 69500 | E54: 319
A55: Tulare | B55: 57900 | C55: 46300 | D55: 69500 | E55: 325
A56: Tuolumne | B56: 66700 | C56: 53100 | D56: 80050 | E56: 331
A57: Ventura | B57: 89300 | C57: 72500 | D57: 107150 | E57: 337
A58: Yolo | B58: 76900 | C58: 61500 | D58: 92300 | E58: 343
A59: Yuba | B59: 59400 | C59: 47500 | D59: 71300 | E59: 349

Sheet 2014 (hidden)
A1: County | B1: Median Income 2014 | C1: Low Income 2014 | D1: Moderate Income 2014
A2: Alameda | B2: 93500 | C2: 67600 | D2: 112200 | E2: 7
A3: Alpine | B3: 85000 | C3: 63900 | D3: 102000 | E3: =E2+6 -> 13
A4: Amador | B4: 72300 | C4: 57850 | D4: 86750 | E4: =E3+6 -> 19
A5: Butte | B5: 58700 | C5: 46950 | D5: 70450 | E5: 25
A6: Calaveras | B6: 70000 | C6: 56000 | D6: 84000 | E6: 31
A7: Colusa | B7: 57900 | C7: 46300 | D7: 69500 | E7: 37
A8: Contra Costa | B8: 93500 | C8: 67600 | D8: 112200 | E8: 43
A9: Del Norte | B9: 57900 | C9: 46300 | D9: 69500 | E9: 49
A10: El Dorado | B10: 76100 | C10: 60900 | D10: 91300 | E10: 55
A11: Fresno | B11: 57900 | C11: 46300 | D11: 69500 | E11: 61
A12: Glenn | B12: 57900 | C12: 46300 | D12: 69500 | E12: 67
A13: Humboldt | B13: 57900 | C13: 46300 | D13: 69500 | E13: 73
A14: Imperial | B14: 57900 | C14: 46300 | D14: 69500 | E14: 79
A15: Inyo | B15: 70900 | C15: 55200 | D15: 85100 | E15: 85
A16: Kern | B16: 57900 | C16: 46300 | D16: 69500 | E16: 91
A17: Kings | B17: 57900 | C17: 46300 | D17: 69500 | E17: 97
A18: Lake | B18: 57900 | C18: 46300 | D18: 69500 | E18: 103
A19: Lassen | B19: 68000 | C19: 54300 | D19: 81600 | E19: 109
A20: Los Angeles | B20: 64800 | C20: 68300 | D20: 77750 | E20: 115
A21: Madera | B21: 57900 | C21: 46300 | D21: 69500 | E21: 121
A22: Marin | B22: 103000 | C22: 90500 | D22: 123600 | E22: 127
A23: Mariposa | B23: 61300 | C23: 49050 | D23: 73550 | E23: 133
A24: Mendocino | B24: 57900 | C24: 46300 | D24: 69500 | E24: 139
A25: Merced | B25: 57900 | C25: 46300 | D25: 69500 | E25: 145
A26: Modoc | B26: 57900 | C26: 46300 | D26: 69500 | E26: 151
A27: Mono | B27: 81200 | C27: 63900 | D27: 97450 | E27: 157
A28: Monterey | B28: 68700 | C28: 57500 | D28: 82450 | E28: 163
A29: Napa | B29: 86100 | C29: 65900 | D29: 103300 | E29: 169
A30: Nevada | B30: 73500 | C30: 58100 | D30: 88200 | E30: 175
A31: Orange | B31: 87200 | C31: 77050 | D31: 104650 | E31: 181
A32: Placer | B32: 76100 | C32: 60900 | D32: 91300 | E32: 187
A33: Plumas | B33: 62000 | C33: 49600 | D33: 74400 | E33: 193
A34: Riverside | B34: 65000 | C34: 53600 | D34: 78000 | E34: 199
A35: Sacramento | B35: 76100 | C35: 60900 | D35: 91300 | E35: 205
A36: San Benito | B36: 81100 | C36: 64400 | D36: 97300 | E36: 211
A37: San Bernardino | B37: 65000 | C37: 53600 | D37: 78000 | E37: 217
A38: San Diego | B38: 75900 | C38: 66100 | D38: 91100 | E38: 223
A39: San Francisco | B39: 103000 | C39: 90500 | D39: 123600 | E39: 229
A40: San Joaquin | B40: 66300 | C40: 53050 | D40: 79550 | E40: 235
A41: San Luis Obispo | B41: 77000 | C41: 60300 | D41: 92400 | E41: 241
A42: San Mateo | B42: 103000 | C42: 90500 | D42: 123600 | E42: 247
A43: Santa Barbara | B43: 73300 | C43: 63700 | D43: 87950 | E43: 253
A44: Santa Clara | B44: 105500 | C44: 84900 | D44: 126600 | E44: 259
A45: Santa Cruz | B45: 87000 | C45: 80650 | D45: 104400 | E45: 265
A46: Shasta | B46: 59000 | C46: 47200 | D46: 70800 | E46: 271
A47: Sierra | B47: 71800 | C47: 56250 | D47: 86150 | E47: 277
A48: Siskiyou | B48: 57900 | C48: 46300 | D48: 69500 | E48: 283
A49: Solano | B49: 82600 | C49: 65000 | D49: 99100 | E49: 289
A50: Sonoma | B50: 82600 | C50: 65000 | D50: 99100 | E50: 295
A51: Stanislaus | B51: 62000 | C51: 49600 | D51: 74400 | E51: 301
A52: Sutter | B52: 59400 | C52: 47500 | D52: 71300 | E52: 307
A53: Tehama | B53: 57900 | C53: 46300 | D53: 69500 | E53: 313
A54: Trinity | B54: 57900 | C54: 46300 | D54: 69500 | E54: 319
A55: Tulare | B55: 57900 | C55: 46300 | D55: 69500 | E55: 325
A56: Tuolumne | B56: 66700 | C56: 53100 | D56: 80050 | E56: 331
A57: Ventura | B57: 89300 | C57: 71200 | D57: 107150 | E57: 337
A58: Yolo | B58: 76900 | C58: 61500 | D58: 92300 | E58: 343
A59: Yuba | B59: 59400 | C59: 47500 | D59: 71300 | E59: 349

Sheet 2013 (hidden)
A1: County | B1: Median Income | C1: Lower Income | D1: Moderate Income
A2: Alameda | B2: 93500 | C2: 66250 | D2: 112200
A3: Alpine | B3: 85300 | C3: 62250 | D3: 102350
A4: Amador | B4: 69200 | C4: 55350 | D4: 83050
A5: Butte | B5: 58700 | C5: 46950 | D5: 70450
A6: Calaveras | B6: 69700 | C6: 55750 | D6: 83650
A7: Colusa | B7: 57900 | C7: 46300 | D7: 69500
A8: Contra Costa | B8: 93500 | C8: 66250 | D8: 112200
A9: Del Norte | B9: 57900 | C9: 46300 | D9: 69500
A10: El Dorado | B10: 76100 | C10: 60900 | D10: 91300
A11: Fresno | B11: 57900 | C11: 46300 | D11: 69500
A12: Glenn | B12: 57900 | C12: 46300 | D12: 69500
A13: Humboldt | B13: 57900 | C13: 46300 | D13: 69500
A14: Imperial | B14: 57900 | C14: 46300 | D14: 69500
A15: Inyo | B15: 65800 | C15: 52650 | D15: 78950
A16: Kern | B16: 57900 | C16: 46300 | D16: 69500
A17: Kings | B17: 57900 | C17: 46300 | D17: 69500
A18: Lake | B18: 57900 | C18: 46300 | D18: 69500
A19: Lassen | B19: 66800 | C19: 51750 | D19: 80150
A20: Los Angeles | B20: 64800 | C20: 68300 | D20: 77750
A21: Madera | B21: 57900 | C21: 46300 | D21: 69500
A22: Marin | B22: 103000 | C22: 90500 | D22: 123600
A23: Mariposa | B23: 61300 | C23: 49050 | D23: 73550
A24: Mendocino | B24: 57900 | C24: 46300 | D24: 69500
A25: Merced | B25: 57900 | C25: 46300 | D25: 69500
A26: Modoc | B26: 57900 | C26: 46300 | D26: 69500
A27: Mono | B27: 79600 | C27: 62650 | D27: 95500
A28: Monterey | B28: 68700 | C28: 57050 | D28: 82450
A29: Napa | B29: 86100 | C29: 65750 | D29: 103300
A30: Nevada | B30: 72600 | C30: 58100 | D30: 87100
A31: Orange | B31: 87200 | C31: 77050 | D31: 104650
A32: Placer | B32: 76100 | C32: 60900 | D32: 91300
A33: Plumas | B33: 62000 | C33: 49600 | D33: 74400
A34: Riverside | B34: 65000 | C34: 53600 | D34: 78000
A35: Sacramento | B35: 76100 | C35: 60900 | D35: 91300
A36: San Benito | B36: 81100 | C36: 64400 | D36: 97300
A37: San Bernardino | B37: 65000 | C37: 53600 | D37: 78000
A38: San Diego | B38: 75900 | C38: 66100 | D38: 91100
A39: San Francisco | B39: 103000 | C39: 90500 | D39: 123600
A40: San Joaquin | B40: 66300 | C40: 53050 | D40: 79550
A41: San Luis Obispo | B41: 75400 | C41: 60300 | D41: 90500
A42: San Mateo | B42: 103000 | C42: 90500 | D42: 123600
A43: Santa Barbara | B43: 73300 | C43: 63700 | D43: 87950
A44: Santa Clara | B44: 105500 | C44: 84900 | D44: 126600
A45: Santa Cruz | B45: 87000 | C45: 80650 | D45: 104400
A46: Shasta | B46: 59000 | C46: 47200 | D46: 70800
A47: Sierra | B47: 72200 | C47: 56250 | D47: 86650
A48: Siskiyou | B48: 57900 | C48: 46300 | D48: 69500
A49: Solano | B49: 82600 | C49: 65000 | D49: 99100
A50: Sonoma | B50: 82600 | C50: 65000 | D50: 99100
A51: Stanislaus | B51: 62000 | C51: 49600 | D51: 74400
A52: Sutter | B52: 59400 | C52: 47500 | D52: 71300
A53: Tehama | B53: 57900 | C53: 46300 | D53: 69500
A54: Trinity | B54: 57900 | C54: 46300 | D54: 69500
A55: Tulare | B55: 57900 | C55: 46300 | D55: 69500
A56: Tuolumne | B56: 66700 | C56: 53100 | D56: 80050
A57: Ventura | B57: 89300 | C57: 71200 | D57: 107150
A58: Yolo | B58: 76900 | C58: 61500 | D58: 92300
A59: Yuba | B59: 59400 | C59: 47500 | D59: 71300
